Workbook

Sheet U_Calculation
D1: =Traduc!B3 -> Thermal Transmittance calculation opaque walls
D2: EN ISO 6946 | AD2: 1
PL9: 224
B13: =Traduc!B4 -> Construction shall be divided in layers (perpendicular to heat flow) and Sections (parallel to heat flow)
C14: =Traduc!B5 -> Type of wall | D14: 1 | E14: Rsi+Rse (m2·K/W) | F14: =INDEX(DB!B335:E340,D14,4) -> 0.17
E15: =Traduc!B6 -> Total Length (m) | F15: =X18+T18+P18+L18+H18+D18 -> 0.6
D16: =Traduc!B7 -> Section a | H16: =Traduc!B8 -> Section b | L16: =Traduc!B9 -> Section c | P16: =Traduc!B10 -> Section d | T16: =Traduc!B11 -> Section f | X16: =Traduc!B12 -> Section g
D17: =Traduc!B13 -> Length (m) | H17: =Traduc!B13 -> Length (m) | L17: =Traduc!B13 -> Length (m) | P17: =Traduc!B13 -> Length (m) | T17: =Traduc!B13 -> Length (m) | X17: =Traduc!B13 -> Length (m)
D18: 0.5 | H18: 0.05 | L18: 0.05 | P18: 0 | T18: 0 | X18: 0
D19: fa | H19: fa | L19: fa | P19: fa | T19: fa | X19: fa
C20: fa | D20: =D18/$F$15 -> 0.8333333333 | H20: =H18/$F$15 -> 0.08333333333 | L20: =L18/$F$15 -> 0.08333333333 | P20: =P18/$F$15 -> 0 | T20: =T18/$F$15 -> 0 | X20: =X18/$F$15 -> 0 | AB20: =X20+T20+P20+L20+H20+D20 -> 1
B21: =Traduc!B14 -> Layers | C21: =Traduc!B15 -> Thickness (m) | D21: =Traduc!B16 -> Product | E21: l (W/mK) | F21: Ri (m2·K/W) | G21: fa/Ra | H21: =Traduc!B16 -> Product | I21: l (W/mK) | J21: Ri (m2·K/W) | K21: fa/Ra | L21: =Traduc!B16 -> Product | M21: l (W/mK) | N21: Ri (m2·K/W) | O21: fa/Ra | P21: =Traduc!B16 -> Product | Q21: l (W/mK) | R21: Ri (m2·K/W) | S21: fa/Ra | T21: =Traduc!B16 -> Product | U21: l (W/mK) | V21: Ri (m2·K/W) | W21: fa/Ra | X21: =Traduc!B16 -> Product | Y21: l (W/mK) | Z21: Ri (m2·K/W) | AA21: fa/Ra | AB21: 1 / S(fa/Raj)
B22: 1 | C22: 0.13 | D22: 154 | E22: =INDEX(DB!$A$3:$D$319,D22,3) -> 0 | F22: =IF(E22=0,INDEX(DB!$B$3:$D$318,D22,3),$C22/E22) -> 0.1728 | G22: =IF(F22=0,0,D$20/F22) -> 4.822530864 | H22: 154 | I22: =INDEX(DB!$A$3:$D$319,H22,3) -> 0 | J22: =IF(I22=0,INDEX(DB!$B$3:$D$318,H22,3),$C22/I22) -> 0.1728 | K22: =IF(J22=0,0,H$20/J22) -> 0.4822530864 | L22: 154 | M22: =INDEX(DB!$A$3:$D$319,L22,3) -> 0 | N22: =IF(M22=0,INDEX(DB!$B$3:$D$318,L22,3),$C22/M22) -> 0.1728 | O22: =IF(N22=0,0,L$20/N22) -> 0.4822530864 | P22: 1 | Q22: =INDEX(DB!$A$3:$D$319,P22,3) -> 0 | R22: =IF(Q22=0,INDEX(DB!$B$3:$D$318,P22,3),$C22/Q22) -> 0 | S22: =IF(R22=0,0,P$20/R22) -> 0 | T22: 1 | U22: =INDEX(DB!$A$3:$D$319,T22,3) -> 0 | V22: =IF(U22=0,INDEX(DB!$B$3:$D$318,T22,3),$C22/U22) -> 0 | W22: =IF(V22=0,0,T$20/V22) -> 0 | X22: 1 | Y22: =INDEX(DB!$A$3:$D$319,X22,3) -> 0 | Z22: =IF(Y22=0,INDEX(DB!$B$3:$D$318,X22,3),$C22/Y22) -> 0 | AA22: =IF(Z22=0,0,X$20/Z22) -> 0 | AB22: =IF((AA22+W22+S22+O22+K22+G22)=0,0,1/(AA22+W22+S22+O22+K22+G22)) -> 0.1728
B23: 2 | C23: 0.01 | D23: 187 | E23: =INDEX(DB!$A$3:$D$319,D23,3) -> 0.8 | F23: =IF(E23=0,INDEX(DB!$B$3:$D$318,D23,3),$C23/E23) -> 0.0125 | G23: 66.66666667 | H23: 187 | I23: =INDEX(DB!$A$3:$D$319,H23,3) -> 0.8 | J23: =IF(I23=0,INDEX(DB!$B$3:$D$318,H23,3),$C23/I23) -> 0.0125 | K23: 6.666666667 | L23: 187 | M23: =INDEX(DB!$A$3:$D$319,L23,3) -> 0.8 | N23: =IF(M23=0,INDEX(DB!$B$3:$D$318,L23,3),$C23/M23) -> 0.0125 | O23: 6.666666667 | P23: 1 | Q23: =INDEX(DB!$A$3:$D$319,P23,3) -> 0 | R23: =IF(Q23=0,INDEX(DB!$B$3:$D$318,P23,3),$C23/Q23) -> 0 | S23: 0 | T23: 1 | U23: =INDEX(DB!$A$3:$D$319,T23,3) -> 0 | V23: =IF(U23=0,INDEX(DB!$B$3:$D$318,T23,3),$C23/U23) -> 0 | W23: 0 | X23: 1 | Y23: =INDEX(DB!$A$3:$D$319,X23,3) -> 0 | Z23: =IF(Y23=0,INDEX(DB!$B$3:$D$318,X23,3),$C23/Y23) -> 0 | AA23: 0 | AB23: 0.0125
B24: 3 | C24: 0.06 | D24: 256 | E24: =INDEX(DB!$A$3:$D$319,D24,3) -> 0.035 | F24: =IF(E24=0,INDEX(DB!$B$3:$D$318,D24,3),$C24/E24) -> 1.714285714 | G24: 0.4861111111 | H24: 274 | I24: =INDEX(DB!$A$3:$D$319,H24,3) -> 0.15 | J24: =IF(I24=0,INDEX(DB!$B$3:$D$318,H24,3),$C24/I24) -> 0.4 | K24: 0.2083333333 | L24: 256 | M24: =INDEX(DB!$A$3:$D$319,L24,3) -> 0.035 | N24: =IF(M24=0,INDEX(DB!$B$3:$D$318,L24,3),$C24/M24) -> 1.714285714 | O24: 0.04861111111 | P24: 1 | Q24: =INDEX(DB!$A$3:$D$319,P24,3) -> 0 | R24: =IF(Q24=0,INDEX(DB!$B$3:$D$318,P24,3),$C24/Q24) -> 0 | S24: 0 | T24: 1 | U24: =INDEX(DB!$A$3:$D$319,T24,3) -> 0 | V24: =IF(U24=0,INDEX(DB!$B$3:$D$318,T24,3),$C24/U24) -> 0 | W24: 0 | X24: 1 | Y24: =INDEX(DB!$A$3:$D$319,X24,3) -> 0 | Z24: =IF(Y24=0,INDEX(DB!$B$3:$D$318,X24,3),$C24/Y24) -> 0 | AA24: 0 | AB24: 1.345794393
B25: 4 | C25: 0.05 | D25: 256 | E25: =INDEX(DB!$A$3:$D$319,D25,3) -> 0.035 | F25: =IF(E25=0,INDEX(DB!$B$3:$D$318,D25,3),$C25/E25) -> 1.428571429 | G25: 0.5833333333 | H25: 256 | I25: =INDEX(DB!$A$3:$D$319,H25,3) -> 0.035 | J25: =IF(I25=0,INDEX(DB!$B$3:$D$318,H25,3),$C25/I25) -> 1.428571429 | K25: 0.05833333333 | L25: 256 | M25: =INDEX(DB!$A$3:$D$319,L25,3) -> 0.035 | N25: =IF(M25=0,INDEX(DB!$B$3:$D$318,L25,3),$C25/M25) -> 1.428571429 | O25: 0.05833333333 | P25: 1 | Q25: =INDEX(DB!$A$3:$D$319,P25,3) -> 0 | R25: =IF(Q25=0,INDEX(DB!$B$3:$D$318,P25,3),$C25/Q25) -> 0 | S25: 0 | T25: 1 | U25: =INDEX(DB!$A$3:$D$319,T25,3) -> 0 | V25: =IF(U25=0,INDEX(DB!$B$3:$D$318,T25,3),$C25/U25) -> 0 | W25: 0 | X25: 1 | Y25: =INDEX(DB!$A$3:$D$319,X25,3) -> 0 | Z25: =IF(Y25=0,INDEX(DB!$B$3:$D$318,X25,3),$C25/Y25) -> 0 | AA25: 0 | AB25: 1.428571429
B26: 5 | C26: 0.05 | D26: 256 | E26: =INDEX(DB!$A$3:$D$319,D26,3) -> 0.035 | F26: =IF(E26=0,INDEX(DB!$B$3:$D$318,D26,3),$C26/E26) -> 1.428571429 | G26: 0.5833333333 | H26: 256 | I26: =INDEX(DB!$A$3:$D$319,H26,3) -> 0.035 | J26: =IF(I26=0,INDEX(DB!$B$3:$D$318,H26,3),$C26/I26) -> 1.428571429 | K26: 0.05833333333 | L26: 274 | M26: =INDEX(DB!$A$3:$D$319,L26,3) -> 0.15 | N26: =IF(M26=0,INDEX(DB!$B$3:$D$318,L26,3),$C26/M26) -> 0.3333333333 | O26: 0.25 | P26: 1 | Q26: =INDEX(DB!$A$3:$D$319,P26,3) -> 0 | R26: =IF(Q26=0,INDEX(DB!$B$3:$D$318,P26,3),$C26/Q26) -> 0 | S26: 0 | T26: 1 | U26: =INDEX(DB!$A$3:$D$319,T26,3) -> 0 | V26: =IF(U26=0,INDEX(DB!$B$3:$D$318,T26,3),$C26/U26) -> 0 | W26: 0 | X26: 1 | Y26: =INDEX(DB!$A$3:$D$319,X26,3) -> 0 | Z26: =IF(Y26=0,INDEX(DB!$B$3:$D$318,X26,3),$C26/Y26) -> 0 | AA26: 0 | AB26: 1.121495327
B27: 6 | C27: 0.025 | D27: 21 | E27: =INDEX(DB!$A$3:$D$319,D27,3) -> 0 | F27: =IF(E27=0,INDEX(DB!$B$3:$D$318,D27,3),$C27/E27) -> 0.18 | G27: 4.62962963 | H27: 21 | I27: =INDEX(DB!$A$3:$D$319,H27,3) -> 0 | J27: =IF(I27=0,INDEX(DB!$B$3:$D$318,H27,3),$C27/I27) -> 0.18 | K27: 0.462962963 | L27: 21 | M27: =INDEX(DB!$A$3:$D$319,L27,3) -> 0 | N27: =IF(M27=0,INDEX(DB!$B$3:$D$318,L27,3),$C27/M27) -> 0.18 | O27: 0.462962963 | P27: 1 | Q27: =INDEX(DB!$A$3:$D$319,P27,3) -> 0 | R27: =IF(Q27=0,INDEX(DB!$B$3:$D$318,P27,3),$C27/Q27) -> 0 | S27: 0 | T27: 1 | U27: =INDEX(DB!$A$3:$D$319,T27,3) -> 0 | V27: =IF(U27=0,INDEX(DB!$B$3:$D$318,T27,3),$C27/U27) -> 0 | W27: 0 | X27: 1 | Y27: =INDEX(DB!$A$3:$D$319,X27,3) -> 0 | Z27: =IF(Y27=0,INDEX(DB!$B$3:$D$318,X27,3),$C27/Y27) -> 0 | AA27: 0 | AB27: 0.18
B28: 7 | C28: 0.05 | D28: 163 | E28: =INDEX(DB!$A$3:$D$319,D28,3) -> 0 | F28: =IF(E28=0,INDEX(DB!$B$3:$D$318,D28,3),$C28/E28) -> 0.1125 | G28: 7.407407407 | H28: 163 | I28: =INDEX(DB!$A$3:$D$319,H28,3) -> 0 | J28: =IF(I28=0,INDEX(DB!$B$3:$D$318,H28,3),$C28/I28) -> 0.1125 | K28: 0.7407407407 | L28: 163 | M28: =INDEX(DB!$A$3:$D$319,L28,3) -> 0 | N28: =IF(M28=0,INDEX(DB!$B$3:$D$318,L28,3),$C28/M28) -> 0.1125 | O28: 0.7407407407 | P28: 1 | Q28: =INDEX(DB!$A$3:$D$319,P28,3) -> 0 | R28: =IF(Q28=0,INDEX(DB!$B$3:$D$318,P28,3),$C28/Q28) -> 0 | S28: 0 | T28: 1 | U28: =INDEX(DB!$A$3:$D$319,T28,3) -> 0 | V28: =IF(U28=0,INDEX(DB!$B$3:$D$318,T28,3),$C28/U28) -> 0 | W28: 0 | X28: 1 | Y28: =INDEX(DB!$A$3:$D$319,X28,3) -> 0 | Z28: =IF(Y28=0,INDEX(DB!$B$3:$D$318,X28,3),$C28/Y28) -> 0 | AA28: 0 | AB28: 0.1125
B29: 8 | C29: 0.015 | D29: 224 | E29: =INDEX(DB!$A$3:$D$319,D29,3) -> 0.57 | F29: =IF(E29=0,INDEX(DB!$B$3:$D$318,D29,3),$C29/E29) -> 0.02631578947 | G29: 31.66666667 | H29: 224 | I29: =INDEX(DB!$A$3:$D$319,H29,3) -> 0.57 | J29: =IF(I29=0,INDEX(DB!$B$3:$D$318,H29,3),$C29/I29) -> 0.02631578947 | K29: 3.166666667 | L29: 224 | M29: =INDEX(DB!$A$3:$D$319,L29,3) -> 0.57 | N29: =IF(M29=0,INDEX(DB!$B$3:$D$318,L29,3),$C29/M29) -> 0.02631578947 | O29: 3.166666667 | P29: 1 | Q29: =INDEX(DB!$A$3:$D$319,P29,3) -> 0 | R29: =IF(Q29=0,INDEX(DB!$B$3:$D$318,P29,3),$C29/Q29) -> 0 | S29: 0 | T29: 1 | U29: =INDEX(DB!$A$3:$D$319,T29,3) -> 0 | V29: =IF(U29=0,INDEX(DB!$B$3:$D$318,T29,3),$C29/U29) -> 0 | W29: 0 | X29: 1 | Y29: =INDEX(DB!$A$3:$D$319,X29,3) -> 0 | Z29: =IF(Y29=0,INDEX(DB!$B$3:$D$318,X29,3),$C29/Y29) -> 0 | AA29: 0 | AB29: 0.02631578947
B30: 9 | D30: 1 | E30: =INDEX(DB!$A$3:$D$319,D30,3) -> 0 | F30: =IF(E30=0,INDEX(DB!$B$3:$D$318,D30,3),$C30/E30) -> 0 | G30: 0 | H30: 1 | I30: =INDEX(DB!$A$3:$D$319,H30,3) -> 0 | J30: =IF(I30=0,INDEX(DB!$B$3:$D$318,H30,3),$C30/I30) -> 0 | K30: 0 | L30: 1 | M30: =INDEX(DB!$A$3:$D$319,L30,3) -> 0 | N30: =IF(M30=0,INDEX(DB!$B$3:$D$318,L30,3),$C30/M30) -> 0 | O30: 0 | P30: 1 | Q30: =INDEX(DB!$A$3:$D$319,P30,3) -> 0 | R30: =IF(Q30=0,INDEX(DB!$B$3:$D$318,P30,3),$C30/Q30) -> 0 | S30: 0 | T30: 1 | U30: =INDEX(DB!$A$3:$D$319,T30,3) -> 0 | V30: =IF(U30=0,INDEX(DB!$B$3:$D$318,T30,3),$C30/U30) -> 0 | W30: 0 | X30: 1 | Y30: =INDEX(DB!$A$3:$D$319,X30,3) -> 0 | Z30: =IF(Y30=0,INDEX(DB!$B$3:$D$318,X30,3),$C30/Y30) -> 0 | AA30: 0 | AB30: 0
B31: 10 | D31: 1 | E31: =INDEX(DB!$A$3:$D$319,D31,3) -> 0 | F31: =IF(E31=0,INDEX(DB!$B$3:$D$318,D31,3),$C31/E31) -> 0 | G31: 0 | H31: 1 | I31: =INDEX(DB!$A$3:$D$319,H31,3) -> 0 | J31: =IF(I31=0,INDEX(DB!$B$3:$D$318,H31,3),$C31/I31) -> 0 | K31: 0 | L31: 1 | M31: =INDEX(DB!$A$3:$D$319,L31,3) -> 0 | N31: =IF(M31=0,INDEX(DB!$B$3:$D$318,L31,3),$C31/M31) -> 0 | O31: 0 | P31: 1 | Q31: =INDEX(DB!$A$3:$D$319,P31,3) -> 0 | R31: =IF(Q31=0,INDEX(DB!$B$3:$D$318,P31,3),$C31/Q31) -> 0 | S31: 0 | T31: 1 | U31: =INDEX(DB!$A$3:$D$319,T31,3) -> 0 | V31: =IF(U31=0,INDEX(DB!$B$3:$D$318,T31,3),$C31/U31) -> 0 | W31: 0 | X31: 1 | Y31: =INDEX(DB!$A$3:$D$319,X31,3) -> 0 | Z31: =IF(Y31=0,INDEX(DB!$B$3:$D$318,X31,3),$C31/Y31) -> 0 | AA31: 0 | AB31: 0
B32: TOTAL | C32: =SUM(C22:C31) -> 0.39 | F32: Rtot (a) | J32: Rtot (a) | N32: Rtot (a) | R32: Rtot (a) | V32: Rtot (a) | Z32: Rtot (a) | AB32: Rlower | AC32: e=100X( Rtot,Upper-Rtot,lower)/(2xRTot)
F33: =SUM(F22:F31) -> 5.075544361 | J33: =SUM(J22:J31) -> 3.761258647 | N33: =SUM(N22:N31) -> 3.980306266 | R33: =SUM(R22:R31) -> 0 | V33: =SUM(V22:V31) -> 0 | Z33: =SUM(Z22:Z31) -> 0 | AB33: =SUM(AB22:AB31) -> 4.399976938 | AC33: =100*(AB35-AB33)/(2*AC35) -> 4.601474414
F34: fa / Rtot(a) | J34: fa / Rtot(a) | N34: fa / Rtot(a) | R34: fa / Rtot(a) | V34: fa / Rtot(a) | Z34: fa / Rtot(a) | AB34: Rupper | AC34: Rtot=(Rupper+Rlower)/2
F35: =IF(F33=0,0,D20/F33) -> 0.1641860014 | J35: =IF(J33=0,0,H20/J33) -> 0.02215570402 | N35: =IF(N33=0,0,L20/N33) -> 0.02093641237 | R35: =IF(R33=0,0,P20/R33) -> 0 | V35: =IF(V33=0,0,T20/V33) -> 0 | Z35: =IF(Z33=0,0,X20/Z33) -> 0 | AB35: =1/(Z35+V35+R35+N35+J35+F35) -> 4.824435936 | AC35: =(AB33+AB35)/2 -> 4.612206437
B36: TOTAL (m) | C36: =SUM(C22:C31) -> 0.39 | G36: Transmitancia Térmica
D37: =Traduc!B17 -> Thermal Transmittance without corrections | H37: =Traduc!B18 -> Thermal Transmittance with corrections
C38: U= | D38: =1/(AC35+F14) -> 0.2091084969 | E38: W/m2·K | F38: U= | H38: =D38+E63+E75+E49 -> 0.2335743141 | I38: W/m2·K
C39: Rc,opac= | D39: =AC35 -> 4.612206437 | E39: m2·K/W
C40: Rc,opac+Rsi+Rse= | D40: =D39+F14 -> 4.782206437 | E40: m2·K/W
C42: =Traduc!B19 -> AIR GAPS CORRECTION
C43: =Traduc!B20 -> Level | E43: DU"
C44: 0 | D44: =VLOOKUP(C44,DB!B348:D350,2,0) -> No air voids within the insulation, or where only minor air voids are present that have no significant effect on the thermal transmittance. | E44: =VLOOKUP(C44,DB!B348:D350,3,0) -> 0
C45: =Traduc!B21 -> Layer Nº next to air gap
C46: 3 | D46: =IF(C46="","",INDEX(DB!$B$3:$B$319,VLOOKUP(C46,$B$22:$D$31,3,0))) -> URSA/URSA GLASSWOOL Lambda 035 | E46: =IF(C46="","",VLOOKUP(C46,$B$22:$F$31,5,0)) -> 1.714285714
C47: 4 | D47: =IF(C47="","",INDEX(DB!$B$3:$B$319,VLOOKUP(C47,$B$22:$D$31,3,0))) -> URSA/URSA GLASSWOOL Lambda 035 | E47: =IF(C47="","",VLOOKUP(C47,$B$22:$F$31,5,0)) -> 1.428571429 | F47: =SUM(E46:E48) -> 4.571428571
C48: 5 | D48: =IF(C48="","",INDEX(DB!$B$3:$B$319,VLOOKUP(C48,$B$22:$D$31,3,0))) -> URSA/URSA GLASSWOOL Lambda 035 | E48: 1.428571429
D49: Dug= | E49: =E44*(F47/F33)^2 -> 0
C51: =Traduc!B22 -> FASTENERS CORRECTION
C52: 4 | D52: =Traduc!B23 -> Fasteners density (un/m2)
C53: 50 | D53: =Traduc!B24 -> Fasteners thermal conductivity (W/mK)
C54: =+PI()*0.003^2 -> 2.827433388e-05 | D54: =Traduc!B25 -> Areca of fastener (m2)
C55: 0.15 | D55: =Traduc!B26 -> Insulation Thickness d0 (m)
C56: 0.15 | D56: =Traduc!B27 -> Fastener penetration thickness d1 (m)
C57: =Traduc!B28 -> Layer nº peented by fastener
C58: 3 | D58: =IF(C58="","",INDEX(DB!$B$3:$B$319,VLOOKUP(C58,$B$22:$D$31,3,0))) -> URSA/URSA GLASSWOOL Lambda 035 | E58: =IF(C58="","",VLOOKUP(C58,$B$22:$F$31,5,0)) -> 1.714285714
C59: 4 | D59: =IF(C59="","",INDEX(DB!$B$3:$B$319,VLOOKUP(C59,$B$22:$D$31,3,0))) -> URSA/URSA GLASSWOOL Lambda 035 | E59: =IF(C59="","",VLOOKUP(C59,$B$22:$F$31,5,0)) -> 1.428571429 | F59: =SUM(E58:E60) -> 4.571428571
C60: 5 | D60: =IF(C60="","",INDEX(DB!$B$3:$B$319,VLOOKUP(C60,$B$22:$D$31,3,0))) -> URSA/URSA GLASSWOOL Lambda 035 | E60: 1.428571429
D63: Duf= | E63: =IF(OR(C55=0,C56=0),0,0.8*(C56/C55)*(C53*C54*C52/C56)*(F59/F33)^2) -> 0.0244658172
C65: =Traduc!B29 -> INVERTED ROOF CORRECTION
D66: =Traduc!B30 -> Average rain precipitation (mm/day)
C67: =Traduc!B31 -> Layer nº above insulation
D68: =IF(C68="","",VLOOKUP(C68,$B$22:$D$31,3,0)) ->  | E68: =IF(C68="","",VLOOKUP(C68,$B$22:$F$31,5,0)) -> 
D69: =IF(C69="","",VLOOKUP(C69,$B$22:$D$31,3,0)) ->  | E69: =IF(C69="","",VLOOKUP(C69,$B$22:$F$31,5,0)) -> 
F70: =SUM(E68:E73) -> 0
D71: =IF(C71="","",VLOOKUP(C71,$B$22:$D$31,3,0)) ->  | E71: =IF(C71="","",VLOOKUP(C71,$B$22:$F$31,5,0)) -> 
D75: Duf= | E75: =0.04*C66*(F70/F33)^2 -> 0
C77: © JosepSole Bonet

Sheet DB
B2: Material | C2: Lambda (W/m·K) | D2: R (m2.K/W) | I2: id | J2: English | K2: Español | L2: Français | M2: Lambda (W/m·K) | N2: R (m2.K/W)
B3: =INDEX(J3:L3,U_Calculation!$AD$2) -> None | C3: =M3 -> 0 | D3: =N3 -> 0 | I3: 1 | J3: None | K3: Ninguno | L3: Aucun | M3: 0 | N3: 0
B4: =INDEX(J4:L4,U_Calculation!$AD$2) -> Air gaps/ in ceilings 10 mm | C4: =M4 -> 0 | D4: =N4 -> 0.15 | I4: 74 | J4: Air gaps/ in ceilings 10 mm | K4: Cámaras de Aire/Techos 10 mm | L4: Lame d'air/Toiture 10 mm | N4: 0.15
B5: =INDEX(J5:L5,U_Calculation!$AD$2) -> Air gaps/ in ceilings 100 mm | C5: 0 | D5: 0.16 | I5: 78 | J5: Air gaps/ in ceilings 100 mm | K5: Cámaras de Aire/Techos 100 mm | L5: Lame d'air/Toiture 100 mm | N5: 0.16
B6: =INDEX(J6:L6,U_Calculation!$AD$2) -> Air gaps/ in ceilings 15 mm | C6: 0 | D6: 0.16 | I6: 75 | J6: Air gaps/ in ceilings 15 mm | K6: Cámaras de Aire/Techos 15 mm | L6: Lame d'air/Toiture 15 mm | N6: 0.16
B7: =INDEX(J7:L7,U_Calculation!$AD$2) -> Air gaps/ in ceilings 25 mm | C7: 0 | D7: 0.16 | I7: 76 | J7: Air gaps/ in ceilings 25 mm | K7: Cámaras de Aire/Techos 25 mm | L7: Lame d'air/Toiture 25 mm | N7: 0.16
B8: =INDEX(J8:L8,U_Calculation!$AD$2) -> Air gaps/ in ceilings 300 mm | C8: 0 | D8: 0.16 | I8: 79 | J8: Air gaps/ in ceilings 300 mm | K8: Cámaras de Aire/Techos 300 mm | L8: Lame d'air/Toiture 300 mm | N8: 0.16
B9: =INDEX(J9:L9,U_Calculation!$AD$2) -> Air gaps/ in ceilings 5 mm | C9: 0 | D9: 0.11 | I9: 72 | J9: Air gaps/ in ceilings 5 mm | K9: Cámaras de Aire/Techos 5 mm | L9: Lame d'air/Toiture 5 mm | N9: 0.11
B10: =INDEX(J10:L10,U_Calculation!$AD$2) -> Air gaps/ in ceilings 50 mm | C10: 0 | D10: 0.16 | I10: 77 | J10: Air gaps/ in ceilings 50 mm | K10: Cámaras de Aire/Techos 50 mm | L10: Lame d'air/Toiture 50 mm | N10: 0.16
B11: =INDEX(J11:L11,U_Calculation!$AD$2) -> Air gaps/ in ceilings 7 mm | C11: 0 | D11: 0.13 | I11: 73 | J11: Air gaps/ in ceilings 7 mm | K11: Cámaras de Aire/Techos 7 mm | L11: Lame d'air/Toiture 7 mm | N11: 0.13
B12: =INDEX(J12:L12,U_Calculation!$AD$2) -> Air gaps/ in floors 10 mm | C12: 0 | D12: 0.115 | I12: 66 | J12: Air gaps/ in floors 10 mm | K12: Cámaras de Aire/Suelos 10 mm | L12: Lame d'air/sols 10 mm | N12: 0.115
B13: =INDEX(J13:L13,U_Calculation!$AD$2) -> Air gaps/ in floors 100 mm | C13: 0 | D13: 0.22 | I13: 70 | J13: Air gaps/ in floors 100 mm | K13: Cámaras de Aire/Suelos 100 mm | L13: Lame d'air/sols 100 mm | N13: 0.22
B14: =INDEX(J14:L14,U_Calculation!$AD$2) -> Air gaps/ in floors 15 mm | C14: 0 | D14: 0.17 | I14: 67 | J14: Air gaps/ in floors 15 mm | K14: Cámaras de Aire/Suelos 15 mm | L14: Lame d'air/sols 15 mm | N14: 0.17
B15: =INDEX(J15:L15,U_Calculation!$AD$2) -> Air gaps/ in floors 25 mm | C15: 0 | D15: 0.19 | I15: 68 | J15: Air gaps/ in floors 25 mm | K15: Cámaras de Aire/Suelos 25 mm | L15: Lame d'air/sols 25 mm | N15: 0.19
B16: =INDEX(J16:L16,U_Calculation!$AD$2) -> Air gaps/ in floors 300 mm | C16: 0 | D16: 0.23 | I16: 71 | J16: Air gaps/ in floors 300 mm | K16: Cámaras de Aire/Suelos 300 mm | L16: Lame d'air/sols 300 mm | N16: 0.23
B17: =INDEX(J17:L17,U_Calculation!$AD$2) -> Air gaps/ in floors 5 mm | C17: 0 | D17: 0.11 | I17: 64 | J17: Air gaps/ in floors 5 mm | K17: Cámaras de Aire/Suelos 5 mm | L17: Lame d'air/sols 5 mm | N17: 0.11
B18: =INDEX(J18:L18,U_Calculation!$AD$2) -> Air gaps/ in floors 50 mm | C18: 0 | D18: 0.21 | I18: 69 | J18: Air gaps/ in floors 50 mm | K18: Cámaras de Aire/Suelos 50 mm | L18: Lame d'air/sols 50 mm | N18: 0.21
B19: =INDEX(J19:L19,U_Calculation!$AD$2) -> Air gaps/ in floors 7 mm | C19: 0 | D19: 0.13 | I19: 65 | J19: Air gaps/ in floors 7 mm | K19: Cámaras de Aire/Suelos 7 mm | L19: Lame d'air/sols 7 mm | N19: 0.13
B20: =INDEX(J20:L20,U_Calculation!$AD$2) -> Air gaps/ in walls 10 mm | C20: 0 | D20: 0.15 | I20: 58 | J20: Air gaps/ in walls 10 mm | K20: Cámaras de Aire/Paredes 10 mm | L20: Lame d'air/Façades 10 mm | N20: 0.15
B21: =INDEX(J21:L21,U_Calculation!$AD$2) -> Air gaps/ in walls 100 mm | C21: 0 | D21: 0.18 | I21: 62 | J21: Air gaps/ in walls 100 mm | K21: Cámaras de Aire/Paredes 100 mm | L21: Lame d'air/Façades 100 mm | N21: 0.18
B22: =INDEX(J22:L22,U_Calculation!$AD$2) -> Air gaps/ in walls 15 mm | C22: 0 | D22: 0.17 | I22: 59 | J22: Air gaps/ in walls 15 mm | K22: Cámaras de Aire/Paredes 15 mm | L22: Lame d'air/Façades 15 mm | N22: 0.17
B23: =INDEX(J23:L23,U_Calculation!$AD$2) -> Air gaps/ in walls 25 mm | C23: 0 | D23: 0.18 | I23: 60 | J23: Air gaps/ in walls 25 mm | K23: Cámaras de Aire/Paredes 25 mm | L23: Lame d'air/Façades 25 mm | N23: 0.18
B24: =INDEX(J24:L24,U_Calculation!$AD$2) -> Air gaps/ in walls 300 mm | C24: 0 | D24: 0.18 | I24: 63 | J24: Air gaps/ in walls 300 mm | K24: Cámaras de Aire/Paredes 300 mm | L24: Lame d'air/Façades 300 mm | N24: 0.18
B25: =INDEX(J25:L25,U_Calculation!$AD$2) -> Air gaps/ in walls 5 mm | C25: 0 | D25: 0.11 | I25: 56 | J25: Air gaps/ in walls 5 mm | K25: Cámaras de Aire/Paredes 5 mm | L25: Lame d'air/Façades 5 mm | N25: 0.11
B26: =INDEX(J26:L26,U_Calculation!$AD$2) -> Air gaps/ in walls 50 mm | C26: 0 | D26: 0.18 | I26: 61 | J26: Air gaps/ in walls 50 mm | K26: Cámaras de Aire/Paredes 50 mm | L26: Lame d'air/Façades 50 mm | N26: 0.18
B27: =INDEX(J27:L27,U_Calculation!$AD$2) -> Air gaps/ in walls 7 mm | C27: 0 | D27: 0.13 | I27: 57 | J27: Air gaps/ in walls 7 mm | K27: Cámaras de Aire/Paredes 7 mm | L27: Lame d'air/Façades 7 mm | N27: 0.13
B28: =INDEX(J28:L28,U_Calculation!$AD$2) -> Alveolar flagstone/ -high 200 mm | C28: 0 | D28: 0.14 | I28: 240 | J28: Alveolar flagstone/ -high 200 mm | K28: Losas Alveolares/Sin capa de compresión -Canto 200 mm | L28: Dalles alvéolées/sans couche de compression -Epaisseur 200 mm | N28: 0.14
B29: =INDEX(J29:L29,U_Calculation!$AD$2) -> Alveolar flagstone/ -high 250 mm | C29: 0 | D29: 0.16 | I29: 241 | J29: Alveolar flagstone/ -high 250 mm | K29: Losas Alveolares/Sin capa de compresión -Canto 250 mm | L29: Dalles alvéolées/sans couche de compression -Epaisseur 250 mm | N29: 0.16
B30: =INDEX(J30:L30,U_Calculation!$AD$2) -> Alveolar flagstone/ -high 300 mm | C30: 0 | D30: 0.19 | I30: 242 | J30: Alveolar flagstone/ -high 300 mm | K30: Losas Alveolares/Sin capa de compresión -Canto 300 mm | L30: Dalles alvéolées/sans couche de compression -Epaisseur 300 mm | N30: 0.19
B31: =INDEX(J31:L31,U_Calculation!$AD$2) -> Alveolar flagstone/ -high 350 mm | C31: 0 | D31: 0.21 | I31: 243 | J31: Alveolar flagstone/ -high 350 mm | K31: Losas Alveolares/Sin capa de compresión -Canto 350 mm | L31: Dalles alvéolées/sans couche de compression -Epaisseur 350 mm | N31: 0.21
B32: =INDEX(J32:L32,U_Calculation!$AD$2) -> Alveolar flagstone/ -high 400 mm | C32: 0 | D32: 0.22 | I32: 244 | J32: Alveolar flagstone/ -high 400 mm | K32: Losas Alveolares/Sin capa de compresión -Canto 400 mm | L32: Dalles alvéolées/sans couche de compression -Epaisseur 400 mm | N32: 0.22
B33: =INDEX(J33:L33,U_Calculation!$AD$2) -> Alveolar flagstone/ -high 500 mm | C33: 0 | D33: 0.25 | I33: 245 | J33: Alveolar flagstone/ -high 500 mm | K33: Losas Alveolares/Sin capa de compresión -Canto 500 mm | L33: Dalles alvéolées/sans couche de compression -Epaisseur 500 mm | N33: 0.25
B34: =INDEX(J34:L34,U_Calculation!$AD$2) -> Alveolar flagstone/ with upper concrete layer -High 200 mm | C34: 0 | D34: 0.14 | I34: 86 | J34: Alveolar flagstone/ with upper concrete layer -High 200 mm | K34: Losas Alveolares/Con capa de compresión -Canto 200 mm | L34: Dalles alvéolées/avec couche de compression -Epaisseur 200 mm | N34: 0.14
B35: =INDEX(J35:L35,U_Calculation!$AD$2) -> Alveolar flagstone/ with upper concrete layer -High 250 mm | C35: 0 | D35: 0.16 | I35: 87 | J35: Alveolar flagstone/ with upper concrete layer -High 250 mm | K35: Losas Alveolares/Con capa de compresión -Canto 250 mm | L35: Dalles alvéolées/avec couche de compression -Epaisseur 250 mm | N35: 0.16
B36: =INDEX(J36:L36,U_Calculation!$AD$2) -> Alveolar flagstone/ with upper concrete layer -High 300 mm | C36: 0 | D36: 0.19 | I36: 88 | J36: Alveolar flagstone/ with upper concrete layer -High 300 mm | K36: Losas Alveolares/Con capa de compresión -Canto 300 mm | L36: Dalles alvéolées/avec couche de compression -Epaisseur 300 mm | N36: 0.19
B37: =INDEX(J37:L37,U_Calculation!$AD$2) -> Alveolar flagstone/ with upper concrete layer -High 350 mm | C37: 0 | D37: 0.21 | I37: 89 | J37: Alveolar flagstone/ with upper concrete layer -High 350 mm | K37: Losas Alveolares/Con capa de compresión -Canto 350 mm | L37: Dalles alvéolées/avec couche de compression -Epaisseur 350 mm | N37: 0.21
B38: =INDEX(J38:L38,U_Calculation!$AD$2) -> Alveolar flagstone/ with upper concrete layer -High 400 mm | C38: 0 | D38: 0.22 | I38: 90 | J38: Alveolar flagstone/ with upper concrete layer -High 400 mm | K38: Losas Alveolares/Con capa de compresión -Canto 400 mm | L38: Dalles alvéolées/avec couche de compression -Epaisseur 400 mm | N38: 0.22
B39: =INDEX(J39:L39,U_Calculation!$AD$2) -> Alveolar flagstone/ with upper concrete layer -High 500 mm | C39: 0 | D39: 0.25 | I39: 91 | J39: Alveolar flagstone/ with upper concrete layer -High 500 mm | K39: Losas Alveolares/Con capa de compresión -Canto 500 mm | L39: Dalles alvéolées/avec couche de compression -Epaisseur 500 mm | N39: 0.25
B40: =INDEX(J40:L40,U_Calculation!$AD$2) -> Concrete/Artificial stone, terrazzo | C40: 1.3 | D40: 0 | I40: 202 | J40: Concrete/Artificial stone, terrazzo | K40: Hormigón/Piedra artificial | L40: Béton/ Pierre artificielle | M40: 1.3
B41: =INDEX(J41:L41,U_Calculation!$AD$2) -> Concrete/Concrete 2000 < d < 2300 | C41: 1.65 | D41: 0 | I41: 176 | J41: Concrete/Concrete 2000 < d < 2300 | K41: Hormigón/en masa 2000 < d < 2300 | L41: Béton/non armé 2000 < d < 2300 | M41: 1.65
B42: =INDEX(J42:L42,U_Calculation!$AD$2) -> Concrete/Concrete 2300 < d < 2600 | C42: 2 | D42: 0 | I42: 177 | J42: Concrete/Concrete 2300 < d < 2600 | K42: Hormigón/en masa 2300 < d < 2600 | L42: Béton/non armé 2300 < d < 2600 | M42: 2
B43: =INDEX(J43:L43,U_Calculation!$AD$2) -> Concrete/Light concrete 1600 < d < 1800 | C43: 1.15 | D43: 0 | I43: 174 | J43: Concrete/Light concrete 1600 < d < 1800 | K43: Hormigón/con áridos ligeros 1600 < d < 1800 | L43: Béton/avec granulats légers 1600 < d < 1800 | M43: 1.15
B44: =INDEX(J44:L44,U_Calculation!$AD$2) -> Concrete/Light concrete 1800 < d < 2000 | C44: 1.35 | D44: 0 | I44: 175 | J44: Concrete/Light concrete 1800 < d < 2000 | K44: Hormigón/con áridos ligeros 1800 < d < 2000 | L44: Béton/avec granulats légers 1800 < d < 2000 | M44: 1.35
B45: =INDEX(J45:L45,U_Calculation!$AD$2) -> Concrete/Reinforced concrete 2300 < d < 2500 | C45: 2.3 | D45: 0 | I45: 172 | J45: Concrete/Reinforced concrete 2300 < d < 2500 | K45: Hormigón/armado 2300 < d < 2500 | L45: Béton/armé 2300 < d < 2500 | M45: 2.3
B46: =INDEX(J46:L46,U_Calculation!$AD$2) -> Concrete/Reinforced concrete d > 2500 | C46: 2.5 | D46: 0 | I46: 173 | J46: Concrete/Reinforced concrete d > 2500 | K46: Hormigón/armado d > 2500 | L46: Béton/armé d > 2500 | M46: 2.5
B47: =INDEX(J47:L47,U_Calculation!$AD$2) -> Floor coverings/Carpet, textile flooring | C47: 0.06 | D47: 0 | I47: 181 | J47: Floor coverings/Carpet, textile flooring | K47: Revestimientos suelo/Moquetas, revestimientos textiles | L47: Revêtement sol/Moquette, revêtement textile | M47: 0.06
B48: =INDEX(J48:L48,U_Calculation!$AD$2) -> Floor coverings/Ceramic tile | C48: 1.3 | D48: 0 | I48: 23 | J48: Floor coverings/Ceramic tile | K48: Revestimientos suelo/Azulejo cerámico | L48: Revêtement sol/Carrelage céramique | M48: 1.3
B49: =INDEX(J49:L49,U_Calculation!$AD$2) -> Floor coverings/Ceramic tile (flooring) | C49: 1 | D49: 0 | I49: 208 | J49: Floor coverings/Ceramic tile (flooring) | K49: Revestimientos suelo/Plaqueta o baldosa cerámica | L49: Revêtement sol/Sol céramique | M49: 1
B50: =INDEX(J50:L50,U_Calculation!$AD$2) -> Floor coverings/Floating floor felt | C50: 0.05 | D50: 0 | I50: 247 | J50: Floor coverings/Floating floor felt | K50: Revestimientos suelo/Subcapa, fieltro | L50: Revêtement sol/Sous couche Feltre | M50: 0.05
B51: =INDEX(J51:L51,U_Calculation!$AD$2) -> Floor coverings/Floating floor wool | C51: 0.06 | D51: 0 | I51: 248 | J51: Floor coverings/Floating floor wool | K51: Revestimientos suelo/Subcapa, lana | L51: Revêtement sol/sous couche laine | M51: 0.06
B52: =INDEX(J52:L52,U_Calculation!$AD$2) -> Floor coverings/Stoneware tile | C52: 2.3 | D52: 0 | I52: 209 | J52: Floor coverings/Stoneware tile | K52: Revestimientos suelo/Plaqueta o baldosa de gres | L52: Revêtement sol/Carrelage de grès | M52: 2.3
B53: =INDEX(J53:L53,U_Calculation!$AD$2) -> Floor slab/ (bidirectional) ceramic lightening blocks- High 250 mm | C53: 0 | D53: 0.15 | I53: 140 | J53: Floor slab/ (bidirectional) ceramic lightening blocks- High 250 mm | K53: Forjados de techo/Reticular FR Entrevigado cerámico -Canto 250 mm | L53: Dalles plafond/Bidirectionnel Entrevous céramique-Epaisseur 250 mm | N53: 0.15
B54: =INDEX(J54:L54,U_Calculation!$AD$2) -> Floor slab/ (bidirectional) ceramic lightening blocks- High 300 mm | C54: 0 | D54: 0.18 | I54: 116 | J54: Floor slab/ (bidirectional) ceramic lightening blocks- High 300 mm | K54: Forjados de techo/Reticular Entrevigado cerámico -Canto 300 mm | L54: Dalles plafond/Bidirectionnel Entrevous céramique-Epaisseur 300 mm | N54: 0.18
B55: =INDEX(J55:L55,U_Calculation!$AD$2) -> Floor slab/ (bidirectional) ceramic lightening blocks- High 350 mm | C55: 0 | D55: 0.2 | I55: 117 | J55: Floor slab/ (bidirectional) ceramic lightening blocks- High 350 mm | K55: Forjados de techo/Reticular Entrevigado cerámico -Canto 350 mm | L55: Dalles plafond/Bidirectionnel Entrevous céramique-Epaisseur 350 mm | N55: 0.2
B56: =INDEX(J56:L56,U_Calculation!$AD$2) -> Floor slab/ (bidirectional) concrete lightening blocks- High 250 mm | C56: 0 | D56: 0.13 | I56: 130 | J56: Floor slab/ (bidirectional) concrete lightening blocks- High 250 mm | K56: Forjados de techo/Reticular Entrevigado de hormigón -Canto 250 mm | L56: Dalles plafond/Bidirectionnel Entrevous béton -Epaisseur 250 mm | N56: 0.13
B57: =INDEX(J57:L57,U_Calculation!$AD$2) -> Floor slab/ (bidirectional) concrete lightening blocks- High 300 mm | C57: 0 | D57: 0.15 | I57: 131 | J57: Floor slab/ (bidirectional) concrete lightening blocks- High 300 mm | K57: Forjados de techo/Reticular Entrevigado de hormigón -Canto 300 mm | L57: Dalles plafond/Bidirectionnel Entrevous béton -Epaisseur 300 mm | N57: 0.15
B58: =INDEX(J58:L58,U_Calculation!$AD$2) -> Floor slab/ (bidirectional) concrete lightening blocks- High 350 mm | C58: 0 | D58: 0.18 | I58: 132 | J58: Floor slab/ (bidirectional) concrete lightening blocks- High 350 mm | K58: Forjados de techo/Reticular Entrevigado de hormigón -Canto 350 mm | L58: Dalles plafond/Bidirectionnel Entrevous béton -Epaisseur 350 mm | N58: 0.18
B59: =INDEX(J59:L59,U_Calculation!$AD$2) -> Floor slab/ (bidirectional) concrete lightening blocks- High 400 mm | C59: 0 | D59: 0.2 | I59: 133 | J59: Floor slab/ (bidirectional) concrete lightening blocks- High 400 mm | K59: Forjados de techo/Reticular Entrevigado de hormigón -Canto 400 mm | L59: Dalles plafond/Bidirectionnel Entrevous béton -Epaisseur 400 mm | N59: 0.2
B60: =INDEX(J60:L60,U_Calculation!$AD$2) -> Floor slab/ (bidirectional) concrete lightening blocks- High 450 mm | C60: 0 | D60: 0.22 | I60: 134 | J60: Floor slab/ (bidirectional) concrete lightening blocks- High 450 mm | K60: Forjados de techo/Reticular Entrevigado de hormigón -Canto 450 mm | L60: Dalles plafond/Bidirectionnel Entrevous béton -Epaisseur 450 mm | N60: 0.22
B61: =INDEX(J61:L61,U_Calculation!$AD$2) -> Floor slab/ (bidirectional) cut EPS lightening blocks (flush) - High 400 mm | C61: 0 | D61: 0.3 | I61: 118 | J61: Floor slab/ (bidirectional) cut EPS lightening blocks (flush) - High 400 mm | K61: Forjados de techo/Reticular Entrevigado de EPS mecanizado enrasado - Canto 400 mm | L61: Dalles plafond/Bidirectionnel Entrevous EPS découpé (sans correction pont thermique) - Epaisseur 400 mm | N61: 0.3
B62: =INDEX(J62:L62,U_Calculation!$AD$2) -> Floor slab/ (bidirectional) cut EPS lightening blocks (flush) - High 300 mm | C62: 0 | D62: 0.23 | I62: 119 | J62: Floor slab/ (bidirectional) cut EPS lightening blocks (flush) - High 300 mm | K62: Forjados de techo/Reticular Entrevigado de EPS mecanizado enrasado -Canto 300 mm | L62: Dalles plafond/Bidirectionnel Entrevous EPS découpé (sans correction pont thermique) -Epaisseur 300 mm | N62: 0.23
B63: =INDEX(J63:L63,U_Calculation!$AD$2) -> Floor slab/ (bidirectional) cut EPS lightening blocks (flush) - High 350 mm | C63: 0 | D63: 0.27 | I63: 120 | J63: Floor slab/ (bidirectional) cut EPS lightening blocks (flush) - High 350 mm | K63: Forjados de techo/Reticular Entrevigado de EPS mecanizado enrasado -Canto 350 mm | L63: Dalles plafond/Bidirectionnel Entrevous EPS découpé (sans correction pont thermique) -Epaisseur 350 mm | N63: 0.27
B64: =INDEX(J64:L64,U_Calculation!$AD$2) -> Floor slab/ (bidirectional) cut EPS lightening blocks (flush) - High 450 mm | C64: 0 | D64: 0.34 | I64: 121 | J64: Floor slab/ (bidirectional) cut EPS lightening blocks (flush) - High 450 mm | K64: Forjados de techo/Reticular Entrevigado de EPS mecanizado enrasado -Canto 450 mm | L64: Dalles plafond/Bidirectionnel Entrevous EPS découpé (sans correction pont thermique) -Epaisseur 450 mm | N64: 0.34
B65: =INDEX(J65:L65,U_Calculation!$AD$2) -> Floor slab/ (bidirectional) light concrete lightening blocks - High 450 mm | C65: 0 | D65: 0.23 | I65: 135 | J65: Floor slab/ (bidirectional) light concrete lightening blocks - High 450 mm | K65: Forjados de techo/Reticular Entrevigado de hormigón aligerado - Canto 450 mm | L65: Dalles plafond/Bidirectionnel Entrevous béton léger - Epaisseur 450 mm | N65: 0.23
B66: =INDEX(J66:L66,U_Calculation!$AD$2) -> Floor slab/ (bidirectional) light concrete lightening blocks - High 250 mm | C66: 0 | D66: 0.14 | I66: 136 | J66: Floor slab/ (bidirectional) light concrete lightening blocks - High 250 mm | K66: Forjados de techo/Reticular Entrevigado de hormigón aligerado -Canto 250 mm | L66: Dalles plafond/Bidirectionnel Entrevous béton léger -Epaisseur 250 mm | N66: 0.14
B67: =INDEX(J67:L67,U_Calculation!$AD$2) -> Floor slab/ (bidirectional) light concrete lightening blocks - High 300 mm | C67: 0 | D67: 0.16 | I67: 137 | J67: Floor slab/ (bidirectional) light concrete lightening blocks - High 300 mm | K67: Forjados de techo/Reticular Entrevigado de hormigón aligerado -Canto 300 mm | L67: Dalles plafond/Bidirectionnel Entrevous béton léger -Epaisseur 300 mm | N67: 0.16
B68: =INDEX(J68:L68,U_Calculation!$AD$2) -> Floor slab/ (bidirectional) light concrete lightening blocks - High 350 mm | C68: =M68 -> 0 | D68: =N68 -> 0.19 | I68: 138 | J68: Floor slab/ (bidirectional) light concrete lightening blocks - High 350 mm | K68: Forjados de techo/Reticular Entrevigado de hormigón aligerado -Canto 350 mm | L68: Dalles plafond/Bidirectionnel Entrevous béton léger -Epaisseur 350 mm | N68: 0.19
B69: =INDEX(J69:L69,U_Calculation!$AD$2) -> Floor slab/ (bidirectional) light concrete lightening blocks - High 400 mm | C69: 0 | D69: 0.21 | I69: 139 | J69: Floor slab/ (bidirectional) light concrete lightening blocks - High 400 mm | K69: Forjados de techo/Reticular Entrevigado de hormigón aligerado -Canto 400 mm | L69: Dalles plafond/Bidirectionnel Entrevous béton léger -Epaisseur 400 mm | N69: 0.21
B70: =INDEX(J70:L70,U_Calculation!$AD$2) -> Floor slab/ (bidirectional) moulded EPS lightening blocks (flush) - High 300 mm | C70: 0 | D70: 0.22 | I70: 126 | J70: Floor slab/ (bidirectional) moulded EPS lightening blocks (flush) - High 300 mm | K70: Forjados de techo/Reticular Entrevigado de EPS moldeado enrasado -Canto 300 mm | L70: Dalles plafond/Bidirectionnel Entrevous EPS moulé (sans correction pont thermique) -Epaisseur 300 mm | N70: 0.22
B71: =INDEX(J71:L71,U_Calculation!$AD$2) -> Floor slab/ (bidirectional) moulded EPS lightening blocks (flush) - High 350 mm | C71: 0 | D71: 0.25 | I71: 127 | J71: Floor slab/ (bidirectional) moulded EPS lightening blocks (flush) - High 350 mm | K71: Forjados de techo/Reticular Entrevigado de EPS moldeado enrasado -Canto 350 mm | L71: Dalles plafond/Bidirectionnel Entrevous EPS moulé (sans correction pont thermique) -Epaisseur 350 mm | N71: 0.25
B72: =INDEX(J72:L72,U_Calculation!$AD$2) -> Floor slab/ (bidirectional) moulded EPS lightening blocks (flush) - High 400 mm | C72: 0 | D72: 0.29 | I72: 128 | J72: Floor slab/ (bidirectional) moulded EPS lightening blocks (flush) - High 400 mm | K72: Forjados de techo/Reticular Entrevigado de EPS moldeado enrasado -Canto 400 mm | L72: Dalles plafond/Bidirectionnel Entrevous EPS moulé (sans correction pont thermique) -Epaisseur 400 mm | N72: 0.29
B73: =INDEX(J73:L73,U_Calculation!$AD$2) -> Floor slab/ (bidirectional) moulded EPS lightening blocks (flush) - High 450 mm | C73: 0 | D73: 0.32 | I73: 129 | J73: Floor slab/ (bidirectional) moulded EPS lightening blocks (flush) - High 450 mm | K73: Forjados de techo/Reticular Entrevigado de EPS moldeado enrasado -Canto 450 mm | L73: Dalles plafond/Bidirectionnel Entrevous EPS moulé (sans correction pont thermique) -Epaisseur 450 mm | N73: 0.32
B74: =INDEX(J74:L74,U_Calculation!$AD$2) -> Floor slab/ (bidirectional) moulded EPS lightening blocks (off hook) - High 300 mm | C74: 0 | D74: 0.84 | I74: 122 | J74: Floor slab/ (bidirectional) moulded EPS lightening blocks (off hook) - High 300 mm | K74: Forjados de techo/Reticular Entrevigado de EPS moldeado descolgado -Canto 300 mm | L74: Dalles plafond/Bidirectionnel Entrevous EPS moulé (avec correction pont thermique) -Epaisseur 300 mm | N74: 0.84
B75: =INDEX(J75:L75,U_Calculation!$AD$2) -> Floor slab/ (bidirectional) moulded EPS lightening blocks (off hook) - High 350 mm | C75: 0 | D75: 0.87 | I75: 123 | J75: Floor slab/ (bidirectional) moulded EPS lightening blocks (off hook) - High 350 mm | K75: Forjados de techo/Reticular Entrevigado de EPS moldeado descolgado -Canto 350 mm | L75: Dalles plafond/Bidirectionnel Entrevous EPS moulé (avec correction pont thermique) -Epaisseur 350 mm | N75: 0.87
B76: =INDEX(J76:L76,U_Calculation!$AD$2) -> Floor slab/ (bidirectional) moulded EPS lightening blocks (off hook) - High 400 mm | C76: 0 | D76: 0.91 | I76: 124 | J76: Floor slab/ (bidirectional) moulded EPS lightening blocks (off hook) - High 400 mm | K76: Forjados de techo/Reticular Entrevigado de EPS moldeado descolgado -Canto 400 mm | L76: Dalles plafond/Bidirectionnel Entrevous EPS moulé (avec correction pont thermique) -Epaisseur 400 mm | N76: 0.91
B77: =INDEX(J77:L77,U_Calculation!$AD$2) -> Floor slab/ (bidirectional) moulded EPS lightening blocks (off hook) - High 450 mm | C77: 0 | D77: 0.94 | I77: 125 | J77: Floor slab/ (bidirectional) moulded EPS lightening blocks (off hook) - High 450 mm | K77: Forjados de techo/Reticular Entrevigado de EPS moldeado descolgado -Canto 450 mm | L77: Dalles plafond/Bidirectionnel Entrevous EPS moulé (avec correction pont thermique) -Epaisseur 450 mm | N77: 0.94
B78: =INDEX(J78:L78,U_Calculation!$AD$2) -> Floor slab/ (bidirectional) without lightening blocks - High 250 mm | C78: 0 | D78: 0.06 | I78: 141 | J78: Floor slab/ (bidirectional) without lightening blocks - High 250 mm | K78: Forjados de techo/Reticular Sin Entrevigado -Canto 250 mm | L78: Dalles plafond/Bidirectionnel Sans Entrevous -Epaisseur 250 mm | N78: 0.06
B79: =INDEX(J79:L79,U_Calculation!$AD$2) -> Floor slab/ (bidirectional) without lightening blocks - High 300 mm | C79: 0 | D79: 0.07 | I79: 142 | J79: Floor slab/ (bidirectional) without lightening blocks - High 300 mm | K79: Forjados de techo/Reticular Sin Entrevigado -Canto 300 mm | L79: Dalles plafond/Bidirectionnel Sans Entrevous -Epaisseur 300 mm | N79: 0.07
B80: =INDEX(J80:L80,U_Calculation!$AD$2) -> Floor slab/ (bidirectional) without lightening blocks - High 350 mm | C80: 0 | D80: 0.08 | I80: 143 | J80: Floor slab/ (bidirectional) without lightening blocks - High 350 mm | K80: Forjados de techo/Reticular Sin Entrevigado -Canto 350 mm | L80: Dalles plafond/Bidirectionnel Sans Entrevous -Epaisseur 350 mm | N80: 0.08
B81: =INDEX(J81:L81,U_Calculation!$AD$2) -> Floor slab/ (unidirectional) ceramic lightening blocks- High 250 mm | C81: 0 | D81: 0.28 | I81: 149 | J81: Floor slab/ (unidirectional) ceramic lightening blocks- High 250 mm | K81: Forjados de techo/Unidireccional Entrevigado cerámico -Canto 250 mm | L81: Dalles plafond/Unidirectionnel Entrevous céramique-Epaisseur 250 mm | N81: 0.28
B82: =INDEX(J82:L82,U_Calculation!$AD$2) -> Floor slab/ (unidirectional) ceramic lightening blocks- High 300 mm | C82: 0 | D82: 0.32 | I82: 150 | J82: Floor slab/ (unidirectional) ceramic lightening blocks- High 300 mm | K82: Forjados de techo/Unidireccional Entrevigado cerámico -Canto 300 mm | L82: Dalles plafond/Unidirectionnel Entrevous céramique-Epaisseur 300 mm | N82: 0.32
B83: =INDEX(J83:L83,U_Calculation!$AD$2) -> Floor slab/ (unidirectional) ceramic lightening blocks- High 350 mm | C83: 0 | D83: 0.35 | I83: 151 | J83: Floor slab/ (unidirectional) ceramic lightening blocks- High 350 mm | K83: Forjados de techo/Unidireccional Entrevigado cerámico -Canto 350 mm | L83: Dalles plafond/Unidirectionnel Entrevous céramique-Epaisseur 350 mm | N83: 0.35
B84: =INDEX(J84:L84,U_Calculation!$AD$2) -> Floor slab/ (unidirectional) concrete lightening blocks- High 250 mm | C84: 0 | D84: 0.19 | I84: 161 | J84: Floor slab/ (unidirectional) concrete lightening blocks- High 250 mm | K84: Forjados de techo/Unidireccional Entrevigado de hormigón -Canto 250 mm | L84: Dalles plafond/Unidirectionnel Entrevous béton -Epaisseur 250 mm | N84: 0.19
B85: =INDEX(J85:L85,U_Calculation!$AD$2) -> Floor slab/ (unidirectional) concrete lightening blocks- High 300 mm | C85: 0 | D85: 0.21 | I85: 162 | J85: Floor slab/ (unidirectional) concrete lightening blocks- High 300 mm | K85: Forjados de techo/Unidireccional Entrevigado de hormigón -Canto 300 mm | L85: Dalles plafond/Unidirectionnel Entrevous béton -Epaisseur 300 mm | N85: 0.21
B86: =INDEX(J86:L86,U_Calculation!$AD$2) -> Floor slab/ (unidirectional) concrete lightening blocks- High 350 mm | C86: 0 | D86: 0.23 | I86: 163 | J86: Floor slab/ (unidirectional) concrete lightening blocks- High 350 mm | K86: Forjados de techo/Unidireccional Entrevigado de hormigón -Canto 350 mm | L86: Dalles plafond/Unidirectionnel Entrevous béton -Epaisseur 350 mm | N86: 0.23
B87: =INDEX(J87:L87,U_Calculation!$AD$2) -> Floor slab/ (unidirectional) cut EPS lightening blocks (flush) - High 250 mm | C87: 0 | D87: 0.94 | I87: 152 | J87: Floor slab/ (unidirectional) cut EPS lightening blocks (flush) - High 250 mm | K87: Forjados de techo/Unidireccional Entrevigado de EPS mecanizado enrasado -Canto 250 mm | L87: Dalles plafond/Unidirectionnel Entrevous EPS découpé (sans correction pont thermique) -Epaisseur 250 mm | N87: 0.94
B88: =INDEX(J88:L88,U_Calculation!$AD$2) -> Floor slab/ (unidirectional) cut EPS lightening blocks (flush) - High 300 mm | C88: 0 | D88: 1.17 | I88: 153 | J88: Floor slab/ (unidirectional) cut EPS lightening blocks (flush) - High 300 mm | K88: Forjados de techo/Unidireccional Entrevigado de EPS mecanizado enrasado -Canto 300 mm | L88: Dalles plafond/Unidirectionnel Entrevous EPS découpé (sans correction pont thermique) -Epaisseur 300 mm | N88: 1.17
B89: =INDEX(J89:L89,U_Calculation!$AD$2) -> Floor slab/ (unidirectional) cut EPS lightening blocks (flush) - High 350 mm | C89: 0 | D89: 1.37 | I89: 154 | J89: Floor slab/ (unidirectional) cut EPS lightening blocks (flush) - High 350 mm | K89: Forjados de techo/Unidireccional Entrevigado de EPS mecanizado enrasado -Canto 350 mm | L89: Dalles plafond/Unidirectionnel Entrevous EPS découpé (sans correction pont thermique) -Epaisseur 350 mm | N89: 1.37
B90: =INDEX(J90:L90,U_Calculation!$AD$2) -> Floor slab/ (unidirectional) light concrete lightening blocks - High 400 mm | C90: 0 | D90: 0.295 | I90: 164 | J90: Floor slab/ (unidirectional) light concrete lightening blocks - High 400 mm | K90: Forjados de techo/Unidireccional Entrevigado de hormigón aligerado - Canto 400 mm | L90: Dalles plafond/Unidirectionnel Entrevous béton léger - Epaisseur 400 mm | N90: 0.295
B91: =INDEX(J91:L91,U_Calculation!$AD$2) -> Floor slab/ (unidirectional) light concrete lightening blocks - High 250 mm | C91: 0 | D91: 0.235 | I91: 165 | J91: Floor slab/ (unidirectional) light concrete lightening blocks - High 250 mm | K91: Forjados de techo/Unidireccional Entrevigado de hormigón aligerado -Canto 250 mm | L91: Dalles plafond/Unidirectionnel Entrevous béton léger -Epaisseur 250 mm | N91: 0.235
B92: =INDEX(J92:L92,U_Calculation!$AD$2) -> Floor slab/ (unidirectional) light concrete lightening blocks - High 300 mm | C92: 0 | D92: 0.26 | I92: 166 | J92: Floor slab/ (unidirectional) light concrete lightening blocks - High 300 mm | K92: Forjados de techo/Unidireccional Entrevigado de hormigón aligerado -Canto 300 mm | L92: Dalles plafond/Unidirectionnel Entrevous béton léger -Epaisseur 300 mm | N92: 0.26
B93: =INDEX(J93:L93,U_Calculation!$AD$2) -> Floor slab/ (unidirectional) light concrete lightening blocks - High 350 mm | C93: 0 | D93: 0.29 | I93: 167 | J93: Floor slab/ (unidirectional) light concrete lightening blocks - High 350 mm | K93: Forjados de techo/Unidireccional Entrevigado de hormigón aligerado -Canto 350 mm | L93: Dalles plafond/Unidirectionnel Entrevous béton léger -Epaisseur 350 mm | N93: 0.29
B94: =INDEX(J94:L94,U_Calculation!$AD$2) -> Floor slab/ (unidirectional) moulded EPS lightening blocks (flush) - High 250 mm | C94: 0 | D94: 0.8 | I94: 158 | J94: Floor slab/ (unidirectional) moulded EPS lightening blocks (flush) - High 250 mm | K94: Forjados de techo/Unidireccional Entrevigado de EPS moldeado enrasado -Canto 250 mm | L94: Dalles plafond/Unidirectionnel Entrevous EPS moulé (sans correction pont thermique) -Epaisseur 250 mm | N94: 0.8
B95: =INDEX(J95:L95,U_Calculation!$AD$2) -> Floor slab/ (unidirectional) moulded EPS lightening blocks (flush) - High 300 mm | C95: 0 | D95: 0.88 | I95: 159 | J95: Floor slab/ (unidirectional) moulded EPS lightening blocks (flush) - High 300 mm | K95: Forjados de techo/Unidireccional Entrevigado de EPS moldeado enrasado -Canto 300 mm | L95: Dalles plafond/Unidirectionnel Entrevous EPS moulé (sans correction pont thermique) -Epaisseur 300 mm | N95: 0.88
B96: =INDEX(J96:L96,U_Calculation!$AD$2) -> Floor slab/ (unidirectional) moulded EPS lightening blocks (flush) - High 350 mm | C96: 0 | D96: 0.95 | I96: 160 | J96: Floor slab/ (unidirectional) moulded EPS lightening blocks (flush) - High 350 mm | K96: Forjados de techo/Unidireccional Entrevigado de EPS moldeado enrasado -Canto 350 mm | L96: Dalles plafond/Unidirectionnel Entrevous EPS moulé (sans correction pont thermique) -Epaisseur 350 mm | N96: 0.95
B97: =INDEX(J97:L97,U_Calculation!$AD$2) -> Floor slab/ (unidirectional) moulded EPS lightening blocks (off hook) - High 250 mm | C97: 0 | D97: 1.42 | I97: 155 | J97: Floor slab/ (unidirectional) moulded EPS lightening blocks (off hook) - High 250 mm | K97: Forjados de techo/Unidireccional Entrevigado de EPS moldeado descolgado -Canto 250 mm | L97: Dalles plafond/Unidirectionnel Entrevous EPS moulé (avec correction pont thermique) -Epaisseur 250 mm | N97: 1.42
B98: =INDEX(J98:L98,U_Calculation!$AD$2) -> Floor slab/ (unidirectional) moulded EPS lightening blocks (off hook) - High 300 mm | C98: 0 | D98: 1.5 | I98: 156 | J98: Floor slab/ (unidirectional) moulded EPS lightening blocks (off hook) - High 300 mm | K98: Forjados de techo/Unidireccional Entrevigado de EPS moldeado descolgado -Canto 300 mm | L98: Dalles plafond/Unidirectionnel Entrevous EPS moulé (avec correction pont thermique) -Epaisseur 300 mm | N98: 1.5
B99: =INDEX(J99:L99,U_Calculation!$AD$2) -> Floor slab/ (unidirectional) moulded EPS lightening blocks (off hook) - High 350 mm | C99: 0 | D99: 1.57 | I99: 157 | J99: Floor slab/ (unidirectional) moulded EPS lightening blocks (off hook) - High 350 mm | K99: Forjados de techo/Unidireccional Entrevigado de EPS moldeado descolgado -Canto 350 mm | L99: Dalles plafond/Unidirectionnel Entrevous EPS moulé (avec correction pont thermique) -Epaisseur 350 mm | N99: 1.57
B100: =INDEX(J100:L100,U_Calculation!$AD$2) -> Glass/Floating glass | C100: 1 | D100: 0 | I100: 246 | J100: Glass/Floating glass | K100: Vidrio/Sodocálcico [inc. Vidrio flotado] | L100: Verre/Sodocálcique [inc. Floating glass] | M100: 1
B101: =INDEX(J101:L101,U_Calculation!$AD$2) -> Glass/Glass | C101: 1.2 | D101: 0 | I101: 290 | J101: Glass/Glass | K101: Vidrio/Vidrio prensado | L101: Verre/Verre compressé | M101: 1.2
B102: =INDEX(J102:L102,U_Calculation!$AD$2) -> Gypsum/Fibber gypsum board 800 < d < 1000 | C102: 0.25 | D102: 0 | I102: 207 | J102: Gypsum/Fibber gypsum board 800 < d < 1000 | K102: Yeso/Placas de yeso armado con fibras minerales 800 < d < 1000 | L102: Plâtre/Plaque de plâtre avec fibres minérales 800 < d < 1000 | M102: 0.25
B103: =INDEX(J103:L103,U_Calculation!$AD$2) -> Gypsum/Gypsum board 750 < d < 900 | C103: 0.25 | D103: 0 | I103: 204 | J103: Gypsum/Gypsum board 750 < d < 900 | K103: Yeso/Placa de yeso laminado [PYL] 750 < d < 900 | L103: Plâtre/Plaque de plâtre [BA] 750 < d < 900 | M103: 0.25
B104: =INDEX(J104:L104,U_Calculation!$AD$2) -> Gypsum/Gypsum brick 750 < d < 900 | C104: 0.25 | D104: 0 | I104: 205 | J104: Gypsum/Gypsum brick 750 < d < 900 | K104: Yeso/Placa de yeso o escayola 750 < d < 900 | L104: Plâtre/Carreau de plâtre 750 < d < 900 | M104: 0.25
B105: =INDEX(J105:L105,U_Calculation!$AD$2) -> Insulation/Board [EPB] [>80%] | C105: 0.062 | D105: 0 | I105: 197 | J105: Insulation/Board [EPB] [>80%] | K105: Aislantes/Panel de perlita expandida [EPB] [>80%] | L105: Isolants/Panneau perlite expansée [EPB] [>80%] | M105: 0.062
B106: =INDEX(J106:L106,U_Calculation!$AD$2) -> Insulation/Board [CG] | C106: 0.05 | D106: 0 | I106: 198 | J106: Insulation/Board [CG] | K106: Aislantes/Panel de vidrio celular [CG] | L106: Isolants/Panneau verre cellulaire [CG] | M106: 0.05
B107: =INDEX(J107:L107,U_Calculation!$AD$2) -> Insulation/Board [cork] | C107: 0.065 | D107: 0 | I107: 206 | J107: Insulation/Board [cork] | K107: Aislantes/Placas de corcho | L107: Isolants/Panneau en liège | M107: 0.065
B108: =INDEX(J108:L108,U_Calculation!$AD$2) -> Insulation/Elastomeric foam | C108: 0.05 | D108: 0 | I108: 112 | J108: Insulation/Elastomeric foam | K108: Aislantes/Espuma elastomérica-flexible | L108: Isolants/Mousse elastomérique-flexible | M108: 0.05
B109: =INDEX(J109:L109,U_Calculation!$AD$2) -> Insulation/EPS [ 0.029 W/[mK]] | C109: 0.029 | D109: 0 | I109: 106 | J109: Insulation/EPS [ 0.029 W/[mK]] | K109: Aislantes/EPS Poliestireno Expandido [ 0.029 W/[mK]] | L109: Isolants/EPS polystyrène expansé [ 0.029 W/[mK]] | M109: 0.029
B110: =INDEX(J110:L110,U_Calculation!$AD$2) -> Insulation/EPS [ 0.037 W/[mK]] | C110: 0.0375 | D110: 0 | I110: 107 | J110: Insulation/EPS [ 0.037 W/[mK]] | K110: Aislantes/EPS Poliestireno Expandido [ 0.037 W/[mK]] | L110: Isolants/EPS polystyrène expansé [ 0.037 W/[mK]] | M110: 0.0375
B111: =INDEX(J111:L111,U_Calculation!$AD$2) -> Insulation/EPS [ 0.046 W/[mK]] | C111: 0.046 | D111: 0 | I111: 108 | J111: Insulation/EPS [ 0.046 W/[mK]] | K111: Aislantes/EPS Poliestireno Expandido [ 0.046 W/[mK]] | L111: Isolants/EPS polystyrène expansé [ 0.046 W/[mK]] | M111: 0.046
B112: =INDEX(J112:L112,U_Calculation!$AD$2) -> Insulation/Expanded clay [not glued] | C112: 0.148 | D112: 0 | I112: 15 | J112: Insulation/Expanded clay [not glued] | K112: Aislantes/Arcilla Expandida [árido suelto] | L112: Isolants/Argile expansée [granulat] | M112: 0.148
B113: =INDEX(J113:L113,U_Calculation!$AD$2) -> Insulation/Expanded cork 100 < d < 150 | C113: 0.049 | D113: 0 | I113: 97 | J113: Insulation/Expanded cork 100 < d < 150 | K113: Aislantes/Corcho Expandido con resinas sintéticas 100 < d < 150 | L113: Isolants/Liège expansé avec liant synthétique 100 < d < 150 | M113: 0.049
B114: =INDEX(J114:L114,U_Calculation!$AD$2) -> Insulation/Expanded cork 150 < d < 250 | C114: 0.055 | D114: 0 | I114: 98 | J114: Insulation/Expanded cork 150 < d < 250 | K114: Aislantes/Corcho Expandido con resinas sintéticas 150 < d < 250 | L114: Isolants/Liège expansé avec liant synthétique 150 < d < 250 | M114: 0.055
B115: =INDEX(J115:L115,U_Calculation!$AD$2) -> Insulation/MW [0.031 W/[mK]] | C115: 0.031 | D115: 0 | I115: 192 | J115: Insulation/MW [0.031 W/[mK]] | K115: Aislantes/MW Lana mineral [0.031 W/[mK]] | L115: Isolants/MW Laine minérale [0.031 W/[mK]] | M115: 0.031
B116: =INDEX(J116:L116,U_Calculation!$AD$2) -> Insulation/MW [0.04 W/[mK]] | C116: 0.0405 | D116: 0 | I116: 193 | J116: Insulation/MW [0.04 W/[mK]] | K116: Aislantes/MW Lana mineral [0.04 W/[mK]] | L116: Isolants/MW Laine minérale [0.04 W/[mK]] | M116: 0.0405
B117: =INDEX(J117:L117,U_Calculation!$AD$2) -> Insulation/MW [0.05 W/[mK]] | C117: 0.05 | D117: 0 | I117: 194 | J117: Insulation/MW [0.05 W/[mK]] | K117: Aislantes/MW Lana mineral [0.05 W/[mK]] | L117: Isolants/MW Laine minérale [0.05 W/[mK]] | M117: 0.05
B118: =INDEX(J118:L118,U_Calculation!$AD$2) -> Insulation/PE foam | C118: 0.05 | D118: 0 | I118: 109 | J118: Insulation/PE foam | K118: Aislantes/Espuma de polietileno | L118: Isolants/Mousse en polyéthylène | M118: 0.05
B119: =INDEX(J119:L119,U_Calculation!$AD$2) -> Insulation/PUR board HFC or Pentane expanded non air thigh facings [ 0.027 W/[mK]] | C119: 0.027 | D119: 0 | I119: 228 | J119: Insulation/PUR board HFC or Pentane expanded non air thigh facings [ 0.027 W/[mK]] | K119: Aislantes/PUR Plancha con HFC o Pentano y rev. permeable gases [ 0.027 W/[mK]] | L119: Isolants/PUR Panneau expansée HFC ou Pentane avec revêtement perméable aux gaz [ 0.027 W/[mK]] | M119: 0.027
B120: =INDEX(J120:L120,U_Calculation!$AD$2) -> Insulation/PUR board HFC or Pentane expanded non air thigh facings [ 0.03 W/[mK]] | C120: 0.03 | D120: 0 | I120: 227 | J120: Insulation/PUR board HFC or Pentane expanded non air thigh facings [ 0.03 W/[mK]] | K120: Aislantes/PUR Plancha con HFC o Pentano y rev. permeable a gases [ 0.03 W/[mK]] | L120: Isolants/PUR Panneau expansée HFC ou Pentane avec revêtement perméable aux gaz [ 0.03 W/[mK]] | M120: 0.03
B121: =INDEX(J121:L121,U_Calculation!$AD$2) -> Insulation/PUR board HFC or Pentane expanded air thigh facings [ 0.025 W/[mK]] | C121: 0.025 | D121: 0 | I121: 226 | J121: Insulation/PUR board HFC or Pentane expanded air thigh facings [ 0.025 W/[mK]] | K121: Aislantes/PUR Plancha con HFC o Pentano y rev. impermeable a gases [ 0.025 W/[mK]] | L121: Isolants/PUR Panneau expansée HFC ou Pentane avec revêtement non perméable aux gaz [ 0.025 W/[mK]] | M121: 0.025
B122: =INDEX(J122:L122,U_Calculation!$AD$2) -> Insulation/PUR foam | C122: 0.05 | D122: 0 | I122: 110 | J122: Insulation/PUR foam | K122: Aislantes/Espuma de poliuretano [PU] | L122: Isolants/Mousse polyuréthane [PU] | M122: 0.05
B123: =INDEX(J123:L123,U_Calculation!$AD$2) -> Insulation/PUR Injected CO2 expanded | C123: 0.04 | D123: 0 | I123: 225 | J123: Insulation/PUR Injected CO2 expanded | K123: Aislantes/PUR Inyección en tabiquería con dióxido de carbono CO2 | L123: Isolants/PUR injection en paroi expansée au CO2 | M123: 0.04
B124: =INDEX(J124:L124,U_Calculation!$AD$2) -> Insulation/PUR sprayed CO2 expanded close cells [ 0.035 W/[mK]] | C124: 0.035 | D124: 0 | I124: 230 | J124: Insulation/PUR sprayed CO2 expanded close cells [ 0.035 W/[mK]] | K124: Aislantes/PUR Proyección con CO2 celda cerrada [ 0.035 W/[mK]] | L124: Isolants/PUR projection expansée au CO2 cellules fermées [ 0.035 W/[mK]] | M124: 0.035
B125: =INDEX(J125:L125,U_Calculation!$AD$2) -> Insulation/PUR sprayed CO2 expanded close cells [ 0.032 W/[mK]] | C125: 0.032 | D125: 0 | I125: 229 | J125: Insulation/PUR sprayed CO2 expanded close cells [ 0.032 W/[mK]] | K125: Aislantes/PUR Proyección con CO2 celda cerrada [ 0.032 W/[mK]] | L125: Isolants/PUR projection expansée au CO2 cellules fermées [ 0.032 W/[mK]] | M125: 0.032
B126: =INDEX(J126:L126,U_Calculation!$AD$2) -> Insulation/PUR sprayed HFC expanded close cells [ 0.028 W/[mK]] | C126: 0.028 | D126: 0 | I126: 231 | J126: Insulation/PUR sprayed HFC expanded close cells [ 0.028 W/[mK]] | K126: Aislantes/PUR Proyección con Hidrofluorcarbono HFC [ 0.028 W/[mK]] | L126: Isolants/PUR projection expansée au HFC [ 0.028 W/[mK]] | M126: 0.028
B127: =INDEX(J127:L127,U_Calculation!$AD$2) -> Insulation/Pure expanded cork 100 < d < 150 | C127: 0.049 | D127: 0 | I127: 99 | J127: Insulation/Pure expanded cork 100 < d < 150 | K127: Aislantes/Corcho Expandido puro 100 < d < 150 | L127: Isolants/Liège expansé pur 100 < d < 150 | M127: 0.049
B128: =INDEX(J128:L128,U_Calculation!$AD$2) -> Insulation/Silicone foam | C128: 0.12 | D128: 0 | I128: 111 | J128: Insulation/Silicone foam | K128: Aislantes/Espuma de silicona | L128: Isolants/Mousse de silicone | M128: 0.12
B129: =INDEX(J129:L129,U_Calculation!$AD$2) -> Insulation/XPS CO2 expanded [ 0.038 W/[mK]] | C129: 0.038 | D129: 0 | I129: 292 | J129: Insulation/XPS CO2 expanded [ 0.038 W/[mK]] | K129: Aislantes/XPS Expandido con dióxido de carbono CO3 [ 0.038 W/[mK]] | L129: Isolants/XPS Expansée au CO2 [ 0.038 W/[mK]] | M129: 0.038
B130: =INDEX(J130:L130,U_Calculation!$AD$2) -> Insulation/XPS CO2 expanded [ 0.034 W/[mK]] | C130: 0.034 | D130: 0 | I130: 291 | J130: Insulation/XPS CO2 expanded [ 0.034 W/[mK]] | K130: Aislantes/XPS Expansée au CO2 [ 0.034 W/[mK]] | L130: Isolants/XPS Expansée au CO2 [ 0.034 W/[mK]] | M130: 0.034
B131: =INDEX(J131:L131,U_Calculation!$AD$2) -> Insulation/XPS CO2 expanded [ 0.042 W/[mK]] | C131: 0.042 | D131: 0 | I131: 293 | J131: Insulation/XPS CO2 expanded [ 0.042 W/[mK]] | K131: Aislantes/XPS Expandido con dióxido de carbono CO4 [ 0.042 W/[mK]] | L131: Isolants/XPS Expansée au CO2 [ 0.042 W/[mK]] | M131: 0.042
B132: =INDEX(J132:L132,U_Calculation!$AD$2) -> Insulation/XPS HFC expanded [ 0.025 W/[mK]] | C132: =M132 -> 0.025 | D132: =N132 -> 0 | I132: 294 | J132: Insulation/XPS HFC expanded [ 0.025 W/[mK]] | K132: Aislantes/XPS Expansée au HFC [ 0.025 W/[mK]] | L132: Isolants/XPS Expansée au HFC [ 0.025 W/[mK]] | M132: 0.025
B133: =INDEX(J133:L133,U_Calculation!$AD$2) -> Insulation/XPS HFC expanded [ 0.032 W/[mK]] | C133: 0.032 | D133: 0 | I133: 295 | J133: Insulation/XPS HFC expanded [ 0.032 W/[mK]] | K133: Aislantes/XPS Expansée au HFC [ 0.032 W/[mK]] | L133: Isolants/XPS Expansée au HFC [ 0.032 W/[mK]] | M133: 0.032
B134: =INDEX(J134:L134,U_Calculation!$AD$2) -> Insulation/XPS HFC expanded [ 0.039 W/[mK]] | C134: 0.039 | D134: 0 | I134: 296 | J134: Insulation/XPS HFC expanded [ 0.039 W/[mK]] | K134: Aislantes/XPS Expansée au HFC [ 0.039 W/[mK]] | L134: Isolants/XPS Expansée au HFC [ 0.039 W/[mK]] | M134: 0.039
B135: =INDEX(J135:L135,U_Calculation!$AD$2) -> Masonry blocks/Ceramic block with insulating mortar thickness 140 mm | C135: 0 | D135: 0.44 | I135: 26 | J135: Masonry blocks/Ceramic block with insulating mortar thickness 140 mm | K135: Blocs/Ceramique avec mortier isolant epaisseur 140 mm | L135: Blocs/Céramique avec mortier isolant épaisseur 140 mm | N135: 0.44
B136: =INDEX(J136:L136,U_Calculation!$AD$2) -> Masonry blocks/Ceramic block with insulating mortar thickness 190 mm | C136: 0 | D136: 0.63 | I136: 27 | J136: Masonry blocks/Ceramic block with insulating mortar thickness 190 mm | K136: Blocs/Ceramique avec mortier isolant epaisseur 190 mm | L136: Blocs/Céramique avec mortier isolant épaisseur 190 mm | N136: 0.63
B137: =INDEX(J137:L137,U_Calculation!$AD$2) -> Masonry blocks/Ceramic block with insulating mortar thickness 240 mm | C137: 0 | D137: 0.81 | I137: 28 | J137: Masonry blocks/Ceramic block with insulating mortar thickness 240 mm | K137: Blocs/Ceramique avec mortier isolant epaisseur 240 mm | L137: Blocs/Céramique avec mortier isolant épaisseur 240 mm | N137: 0.81
B138: =INDEX(J138:L138,U_Calculation!$AD$2) -> Masonry blocks/Ceramic block with insulating mortar thickness 290 mm | C138: 0 | D138: 0.98 | I138: 29 | J138: Masonry blocks/Ceramic block with insulating mortar thickness 290 mm | K138: Blocs/Ceramique avec mortier isolant epaisseur 290 mm | L138: Blocs/Céramique avec mortier isolant épaisseur 290 mm | N138: 0.98
B139: =INDEX(J139:L139,U_Calculation!$AD$2) -> Masonry blocks/Ceramic block with mortar thickness 140 mm | C139: 0 | D139: 0.32 | I139: 30 | J139: Masonry blocks/Ceramic block with mortar thickness 140 mm | K139: Blocs/Cerámico Avec mortier standard epaisseur 140 mm | L139: Blocs/Céramique Avec mortier standard épaisseur 140 mm | N139: 0.32
B140: =INDEX(J140:L140,U_Calculation!$AD$2) -> Masonry blocks/Ceramic block with mortar thickness 190 mm | C140: 0 | D140: 0.44 | I140: 31 | J140: Masonry blocks/Ceramic block with mortar thickness 190 mm | K140: Blocs/Cerámico Avec mortier standard epaisseur 190 mm | L140: Blocs/Céramique Avec mortier standard épaisseur 190 mm | N140: 0.44
B141: =INDEX(J141:L141,U_Calculation!$AD$2) -> Masonry blocks/Ceramic block with mortar thickness 240 mm | C141: 0 | D141: 0.57 | I141: 32 | J141: Masonry blocks/Ceramic block with mortar thickness 240 mm | K141: Blocs/Cerámico Avec mortier standard epaisseur 240 mm | L141: Blocs/Céramique Avec mortier standard épaisseur 240 mm | N141: 0.57
B142: =INDEX(J142:L142,U_Calculation!$AD$2) -> Masonry blocks/Ceramic block with mortar thickness 290 mm | C142: 0 | D142: 0.68 | I142: 33 | J142: Masonry blocks/Ceramic block with mortar thickness 290 mm | K142: Blocs/Cerámico Avec mortier standard epaisseur 290 mm | L142: Blocs/Céramique Avec mortier standard épaisseur 290 mm | N142: 0.68
B143: =INDEX(J143:L143,U_Calculation!$AD$2) -> Masonry blocks/Concrete block thickness 200 mm | C143: 0 | D143: 0.22 | I143: 45 | J143: Masonry blocks/Concrete block thickness 200 mm | K143: Blocs/Béton standardepaisseur 200 mm | L143: Blocs/Béton standard épaisseur 200 mm | N143: 0.22
B144: =INDEX(J144:L144,U_Calculation!$AD$2) -> Masonry blocks/Concrete block thickness 100 mm | C144: 0 | D144: 0.16 | I144: 43 | J144: Masonry blocks/Concrete block thickness 100 mm | K144: Blocs/Béton standardepaisseur 100 mm | L144: Blocs/Béton standard épaisseur 100 mm | N144: 0.16
B145: =INDEX(J145:L145,U_Calculation!$AD$2) -> Masonry blocks/Concrete block thickness 150 mm | C145: 0 | D145: 0.19 | I145: 44 | J145: Masonry blocks/Concrete block thickness 150 mm | K145: Blocs/Béton standardepaisseur 150 mm | L145: Blocs/Béton standard épaisseur 150 mm | N145: 0.19
B146: =INDEX(J146:L146,U_Calculation!$AD$2) -> Masonry blocks/Concrete block thickness 250 mm | C146: 0 | D146: 0.25 | I146: 46 | J146: Masonry blocks/Concrete block thickness 250 mm | K146: Blocs/Béton standardepaisseur 250 mm | L146: Blocs/Béton standard épaisseur 250 mm | N146: 0.25
B147: =INDEX(J147:L147,U_Calculation!$AD$2) -> Masonry blocks/Concrete block thickness 300 mm | C147: 0 | D147: 0.26 | I147: 47 | J147: Masonry blocks/Concrete block thickness 300 mm | K147: Blocs/Béton standardepaisseur 300 mm | L147: Blocs/Béton standard épaisseur 300 mm | N147: 0.26
B148: =INDEX(J148:L148,U_Calculation!$AD$2) -> Masonry blocks/Light Concrete block hollow -structuctural- thickness 300 mm | C148: 0 | D148: 0.67 | I148: 38 | J148: Masonry blocks/Light Concrete block hollow -structuctural- thickness 300 mm | K148: Blocs/Ceux en béton leger -porteur- epaisseur 300 mm | L148: Blocs/Ceux en béton léger -porteur- épaisseur 300 mm | N148: 0.67
B149: =INDEX(J149:L149,U_Calculation!$AD$2) -> Masonry blocks/Light Concrete block hollow thickness 250 mm | C149: 0 | D149: 0.53 | I149: 36 | J149: Masonry blocks/Light Concrete block hollow thickness 250 mm | K149: Blocs/Ceux en béton leger epaisseur 250 mm | L149: Blocs/Ceux en béton léger épaisseur 250 mm | N149: 0.53
B150: =INDEX(J150:L150,U_Calculation!$AD$2) -> Masonry blocks/Light Concrete block hollow thickness 300 mm | C150: 0 | D150: 0.66 | I150: 37 | J150: Masonry blocks/Light Concrete block hollow thickness 300 mm | K150: Blocs/Ceux en béton leger epaisseur 300 mm | L150: Blocs/Ceux en béton léger épaisseur 300 mm | N150: 0.66
B151: =INDEX(J151:L151,U_Calculation!$AD$2) -> Masonry blocks/Light Concrete block solid -structural- thickness 300 mm | C151: 0 | D151: 0.97 | I151: 42 | J151: Masonry blocks/Light Concrete block solid -structural- thickness 300 mm | K151: Blocs/Plein en béton leger -porteur- epaisseur 300 mm | L151: Blocs/Plein en béton léger -porteur- épaisseur 300 mm | N151: 0.97
B152: =INDEX(J152:L152,U_Calculation!$AD$2) -> Masonry blocks/Light Concrete block solid thickness 200 mm | C152: 0 | D152: 0.7 | I152: 39 | J152: Masonry blocks/Light Concrete block solid thickness 200 mm | K152: Blocs/Plein en béton leger epaisseur 200 mm | L152: Blocs/Plein en béton léger épaisseur 200 mm | N152: 0.7
B153: =INDEX(J153:L153,U_Calculation!$AD$2) -> Masonry blocks/Light Concrete block solid thickness 250 mm | C153: 0 | D153: 0.83 | I153: 40 | J153: Masonry blocks/Light Concrete block solid thickness 250 mm | K153: Blocs/Plein en béton leger epaisseur 250 mm | L153: Blocs/Plein en béton léger épaisseur 250 mm | N153: 0.83
B154: =INDEX(J154:L154,U_Calculation!$AD$2) -> Masonry blocks/Light Concrete block solid thickness 300 mm | C154: 0 | D154: 0.95 | I154: 41 | J154: Masonry blocks/Light Concrete block solid thickness 300 mm | K154: Blocs/Plein en béton leger epaisseur 300 mm | L154: Blocs/Plein en béton léger épaisseur 300 mm | N154: 0.95
B155: =INDEX(J155:L155,U_Calculation!$AD$2) -> Masonry ceramic/120 mm Ceramic brick 40 mm< G < 50 mm | C155: 0 | D155: 0.1152 | I155: 6 | J155: Masonry ceramic/120 mm Ceramic brick 40 mm< G < 50 mm | K155: Fábrica Ladrillo/1/2 pie LM métrico o catalán 40 mm< G < 50 mm | L155: Briques/12 a 15 cm plein 40 mm< G < 50 mm | N155: 0.1152
B156: =INDEX(J156:L156,U_Calculation!$AD$2) -> Masonry ceramic/120 mm Hollow ceramic brick 40 mm< G < 60 mm | C156: 0 | D156: 0.1728 | I156: 7 | J156: Masonry ceramic/120 mm Hollow ceramic brick 40 mm< G < 60 mm | K156: Fábrica Ladrillo/1/2 pie LP métrico o catalán 40 mm< G < 60 mm | L156: Briques/12 a 15 cm perforé 40 mm< G < 60 mm | N156: 0.1728
B157: =INDEX(J157:L157,U_Calculation!$AD$2) -> Masonry ceramic/120 mm Hollow ceramic brick 60 mm< G < 80 mm | C157: 0 | D157: 0.2016 | I157: 8 | J157: Masonry ceramic/120 mm Hollow ceramic brick 60 mm< G < 80 mm | K157: Fábrica Ladrillo/1/2 pie LP métrico o catalán 60 mm< G < 80 mm | L157: Briques/12 a 15 cm perforé 60 mm< G < 80 mm | N157: 0.2016
B158: =INDEX(J158:L158,U_Calculation!$AD$2) -> Masonry ceramic/120 mm Hollow ceramic brick 80 mm< G < 100 mm | C158: 0 | D158: 0.2208 | I158: 9 | J158: Masonry ceramic/120 mm Hollow ceramic brick 80 mm< G < 100 mm | K158: Fábrica Ladrillo/1/2 pie LP métrico o catalán 80 mm< G < 100 mm | L158: Briques/12 a 15 cm perforé 80 mm< G < 100 mm | N158: 0.2208
B159: =INDEX(J159:L159,U_Calculation!$AD$2) -> Masonry ceramic/240 mm Ceramic brick 40 mm< G < 50 mm | C159: 0 | D159: 0.1569230769 | I159: 2 | J159: Masonry ceramic/240 mm Ceramic brick 40 mm< G < 50 mm | K159: Fábrica Ladrillo/1 pie LM métrico o catalán 40 mm< G < 50 mm | L159: Briques/24 a 30 cm plein 40 mm< G < 50 mm | N159: 0.1569230769
B160: =INDEX(J160:L160,U_Calculation!$AD$2) -> Masonry ceramic/240 mm Hollow ceramic brick 240 mm 40 mm< G < 60 mm | C160: 0 | D160: 0.3230769231 | I160: 3 | J160: Masonry ceramic/240 mm Hollow ceramic brick 240 mm 40 mm< G < 60 mm | K160: Fábrica Ladrillo/1 pie LP métrico o catalán 40 mm< G < 60 mm | L160: Briques/24 a 30 cm perforé 40 mm< G < 60 mm | N160: 0.3230769231
B161: =INDEX(J161:L161,U_Calculation!$AD$2) -> Masonry ceramic/240 mm Hollow ceramic brick 60 mm< G < 80 mm | C161: 0 | D161: 0.3784615385 | I161: 4 | J161: Masonry ceramic/240 mm Hollow ceramic brick 60 mm< G < 80 mm | K161: Fábrica Ladrillo/1 pie LP métrico o catalán 60 mm< G < 80 mm | L161: Briques/24 a 30 cm perforé 60 mm< G < 80 mm | N161: 0.3784615385
B162: =INDEX(J162:L162,U_Calculation!$AD$2) -> Masonry ceramic/240 mm Hollow ceramic brick 80 mm< G < 100 mm | C162: 0 | D162: 0.4338461538 | I162: 5 | J162: Masonry ceramic/240 mm Hollow ceramic brick 80 mm< G < 100 mm | K162: Fábrica Ladrillo/1 pie LP métrico o catalán 80 mm< G < 100 mm | L162: Briques/24 a 30 cm perforé 80 mm< G < 100 mm | N162: 0.4338461538
B163: =INDEX(J163:L163,U_Calculation!$AD$2) -> Masonry ceramic/Partition wall de heavy ceramic brick [100 mm < E < 110 mm] | C163: 0 | D163: 0.23 | I163: 251 | J163: Masonry ceramic/Partition wall de heavy ceramic brick [100 mm < E < 110 mm] | K163: Fábrica Ladrillo/Tabicón de LH triple [100 mm < E < 110 mm] | L163: Briques/Cloison alvéolée de creux triple [100 mm < E < 110 mm] | N163: 0.23
B164: =INDEX(J164:L164,U_Calculation!$AD$2) -> Masonry ceramic/Partition wall de heavy ceramic brick big size 100 mm < E < 110 mm | C164: 0 | D164: 0.48 | I164: 252 | J164: Masonry ceramic/Partition wall de heavy ceramic brick big size 100 mm < E < 110 mm | K164: Fábrica Ladrillo/Tabicón de LH triple Gran Formato 100 mm < E < 110 mm | L164: Briques/Cloison alvéolée de creux triple Grand Format 100 mm < E < 110 mm | N164: 0.48
B165: =INDEX(J165:L165,U_Calculation!$AD$2) -> Masonry ceramic/Partition wall de light ceramic brick [40 mm < thickness < 60 mm] | C165: 0 | D165: 0.1125 | I165: 253 | J165: Masonry ceramic/Partition wall de light ceramic brick [40 mm < thickness < 60 mm] | K165: Fábrica Ladrillo/Tabique de LH sencillo [40 mm < epaisseur < 60 mm] | L165: Briques/Brique plâtrière de creux simple [40 mm < épaisseur < 60 mm] | N165: 0.1125
B166: =INDEX(J166:L166,U_Calculation!$AD$2) -> Masonry ceramic/Partition wall de light ceramic brick big size [40 mm < E < 60 mm] | C166: 0 | D166: 0.225 | I166: 254 | J166: Masonry ceramic/Partition wall de light ceramic brick big size [40 mm < E < 60 mm] | K166: Fábrica Ladrillo/Tabique de LH sencillo Gran Formato [40 mm < E < 60 mm] | L166: Briques/Brique plâtrière de creux simple Grand Format [40 mm < E < 60 mm] | N166: 0.225
B167: =INDEX(J167:L167,U_Calculation!$AD$2) -> Masonry ceramic/Partition wall de medium ceramic brick [60 mm < E < 90 mm] | C167: 0 | D167: 0.24 | I167: 249 | J167: Masonry ceramic/Partition wall de medium ceramic brick [60 mm < E < 90 mm] | K167: Fábrica Ladrillo/Tabicón de LH doble [60 mm < E < 90 mm] | L167: Briques/Cloison alvéolée de creux double [60 mm < E < 90 mm] | N167: 0.24
B168: =INDEX(J168:L168,U_Calculation!$AD$2) -> Masonry ceramic/Partition wall de medium ceramic brick big size 60 mm < E < 90 mm | C168: 0 | D168: 0.495 | I168: 250 | J168: Masonry ceramic/Partition wall de medium ceramic brick big size 60 mm < E < 90 mm | K168: Fábrica Ladrillo/Tabicón de LH doble Gran Formato 60 mm < E < 90 mm | L168: Briques/Cloison alvéolée de creux double Grand Format 60 mm < E < 90 mm | N168: 0.495
B169: =INDEX(J169:L169,U_Calculation!$AD$2) -> Metals/Aluminium | C169: 230 | D169: 0 | I169: 13 | J169: Metals/Aluminium | K169: Metales/Aluminio | L169: Métaux/Aluminium | M169: 230
B170: =INDEX(J170:L170,U_Calculation!$AD$2) -> Metals/Aluminium, alloy | C170: 160 | D170: 0 | I170: 14 | J170: Metals/Aluminium, alloy | K170: Metales/Aluminio, aleaciones de | L170: Métaux/Aluminium, alliages | M170: 160
B171: =INDEX(J171:L171,U_Calculation!$AD$2) -> Metals/Brass | C171: 120 | D171: 0 | I171: 178 | J171: Metals/Brass | K171: Metales/Latón | L171: Métaux/laiton | M171: 120
B172: =INDEX(J172:L172,U_Calculation!$AD$2) -> Metals/Bronze | C172: 65 | D172: 0 | I172: 48 | J172: Metals/Bronze | K172: Metales/Bronce | L172: Métaux/bronze | M172: 65
B173: =INDEX(J173:L173,U_Calculation!$AD$2) -> Metals/Chrome | C173: 93.7 | D173: 0 | I173: 100 | J173: Metals/Chrome | K173: Metales/Cromo | L173: Métaux/chrome | M173: 93.7
B174: =INDEX(J174:L174,U_Calculation!$AD$2) -> Metals/Copper | C174: 380 | D174: 0 | I174: 85 | J174: Metals/Copper | K174: Metales/Cobre | L174: Métaux/Cuivre | M174: 380
B175: =INDEX(J175:L175,U_Calculation!$AD$2) -> Metals/Iron | C175: 72 | D175: 0 | I175: 170 | J175: Metals/Iron | K175: Metales/Hierro | L175: Métaux/Fer | M175: 72
B176: =INDEX(J176:L176,U_Calculation!$AD$2) -> Metals/Iron foundry | C176: 50 | D176: 0 | I176: 171 | J176: Metals/Iron foundry | K176: Metales/Hierro, fundición | L176: Métaux/Fer fonte | M176: 50
B177: =INDEX(J177:L177,U_Calculation!$AD$2) -> Metals/Lead | C177: 35 | D177: 0 | I177: 210 | J177: Metals/Lead | K177: Metales/Plomo | L177: Métaux/Plomb | M177: 35
B178: =INDEX(J178:L178,U_Calculation!$AD$2) -> Metals/Linoleum | C178: 0.17 | D178: 0 | I178: 179 | J178: Metals/Linoleum | K178: Metales/Linóleo | L178: Métaux/Linoleum | M178: 0.17
B179: =INDEX(J179:L179,U_Calculation!$AD$2) -> Metals/Nickel | C179: 90.7 | D179: 0 | I179: 196 | J179: Metals/Nickel | K179: Metales/Níquel | L179: Métaux/Níquel | M179: 90.7
B180: =INDEX(J180:L180,U_Calculation!$AD$2) -> Metals/Steel | C180: 50 | D180: 0 | I180: 10 | J180: Metals/Steel | K180: Metales/Acero | L180: Métaux/Acier | M180: 50
B181: =INDEX(J181:L181,U_Calculation!$AD$2) -> Metals/Steel Iox | C181: 17 | D181: 0 | I181: 11 | J181: Metals/Steel Iox | K181: Metales/Acero Inoxidable | L181: Métaux/Acier inox | M181: 17
B182: =INDEX(J182:L182,U_Calculation!$AD$2) -> Metals/Tin | C182: 66.6 | D182: 0 | I182: 114 | J182: Metals/Tin | K182: Metales/Estaño | L182: Métaux/ 6/5000 étain | M182: 66.6
B183: =INDEX(J183:L183,U_Calculation!$AD$2) -> Metals/Titanium | C183: 21.9 | D183: 0 | I183: 279 | J183: Metals/Titanium | K183: Metales/Titanio | L183: Métaux/Titanium | M183: 21.9
B184: =INDEX(J184:L184,U_Calculation!$AD$2) -> Metals/Zinc | C184: 110 | D184: 0 | I184: 297 | J184: Metals/Zinc | K184: Metales/Zinc | L184: Métaux/Zinc | M184: 110
B185: =INDEX(J185:L185,U_Calculation!$AD$2) -> Mortar/Gypsum Mortar | C185: 0.8 | D185: 0 | I185: 191 | J185: Mortar/Gypsum Mortar | K185: Morteros/Mortero de yeso | L185: Mortiers/Mortier de plâtre | M185: 0.8
B186: =INDEX(J186:L186,U_Calculation!$AD$2) -> Mortar/Light masonry mortar [vermiculite, perlite] | C186: 0.41 | D186: 0 | I186: 182 | J186: Mortar/Light masonry mortar [vermiculite, perlite] | K186: Morteros/Mortero de áridos ligeros [vermiculita, perlita] | L186: Mortiers/Mortier granulats légers [vermiculite, perlite] | M186: 0.41
B187: =INDEX(J187:L187,U_Calculation!$AD$2) -> Mortar/Masonry mortar 1000 < d < 1250 | C187: 0.55 | D187: 0 | I187: 183 | J187: Mortar/Masonry mortar 1000 < d < 1250 | K187: Morteros/Mortero de cemento o cal para albañilería y para revoco/enlucido 1000< d < 1250 | L187: Mortiers/Mortier de ciment ou batard pour enduits 1000< d < 1250 | M187: 0.55
B188: =INDEX(J188:L188,U_Calculation!$AD$2) -> Mortar/Masonry mortar 1250 < d < 1450 | C188: 0.7 | D188: 0 | I188: 184 | J188: Mortar/Masonry mortar 1250 < d < 1450 | K188: Morteros/Mortero de cemento o cal para albañilería y para revoco/enlucido 1250 < d < 1450 | L188: Mortiers/Mortier de ciment ou batard pour enduits 1250 < d < 1450 | M188: 0.7
B189: =INDEX(J189:L189,U_Calculation!$AD$2) -> Mortar/Masonry mortar 1450 < d < 1600 | C189: 0.8 | D189: 0 | I189: 185 | J189: Mortar/Masonry mortar 1450 < d < 1600 | K189: Morteros/Mortero de cemento o cal para albañilería y para revoco/enlucido 1450 < d < 1600 | L189: Mortiers/Mortier de ciment ou batard pour enduits 1450 < d < 1600 | M189: 0.8
B190: =INDEX(J190:L190,U_Calculation!$AD$2) -> Mortar/Masonry mortar 1600 < d < 1800 | C190: 1 | D190: 0 | I190: 186 | J190: Mortar/Masonry mortar 1600 < d < 1800 | K190: Morteros/Mortero de cemento o cal para albañilería y para revoco/enlucido 1600 < d < 1800 | L190: Mortiers/Mortier de ciment ou batard pour enduits 1600 < d < 1800 | M190: 1
B191: =INDEX(J191:L191,U_Calculation!$AD$2) -> Mortar/Masonry mortar 1800 < d < 2000 | C191: 1.3 | D191: 0 | I191: 187 | J191: Mortar/Masonry mortar 1800 < d < 2000 | K191: Morteros/Mortero de cemento o cal para albañilería y para revoco/enlucido 1800 < d < 2000 | L191: Mortiers/Mortier de ciment ou batard pour enduits 1800 < d < 2000 | M191: 1.3
B192: =INDEX(J192:L192,U_Calculation!$AD$2) -> Mortar/Masonry mortar 500 < d < 750 | C192: 0.3 | D192: 0 | I192: 188 | J192: Mortar/Masonry mortar 500 < d < 750 | K192: Morteros/Mortero de cemento o cal para albañilería y para revoco/enlucido 500 < d < 750 | L192: Mortiers/Mortier de ciment ou batard pour enduits 500 < d < 750 | M192: 0.3
B193: =INDEX(J193:L193,U_Calculation!$AD$2) -> Mortar/Masonry mortar 750 < d < 1000 | C193: 0.4 | D193: 0 | I193: 189 | J193: Mortar/Masonry mortar 750 < d < 1000 | K193: Morteros/Mortero de cemento o cal para albañilería y para revoco/enlucido 750 < d < 1000 | L193: Mortiers/Mortier de ciment ou batard pour enduits 750 < d < 1000 | M193: 0.4
B194: =INDEX(J194:L194,U_Calculation!$AD$2) -> Mortar/Masonry mortar d >2000 | C194: 1.8 | D194: 0 | I194: 190 | J194: Mortar/Masonry mortar d >2000 | K194: Morteros/Mortero de cemento o cal para albañilería y para revoco/enlucido d >2000 | L194: Mortiers/Mortier de ciment ou batard pour enduits d >2000 | M194: 1.8
B195: =INDEX(J195:L195,U_Calculation!$AD$2) -> Plastic/Acrylic | C195: =M195 -> 0.2 | D195: =N195 -> 0 | I195: 12 | J195: Plastic/Acrylic | K195: Plásticos/Acrílicos | L195: Plastiques/Acrylique | M195: 0.2
B196: =INDEX(J196:L196,U_Calculation!$AD$2) -> Plastic/Butadiene | C196: 0.25 | D196: 0 | I196: 49 | J196: Plastic/Butadiene | K196: Plásticos/Butadieno | L196: Plastiques/Butadiène | M196: 0.25
B197: =INDEX(J197:L197,U_Calculation!$AD$2) -> Plastic/EPDM | C197: 0.25 | D197: 0 | I197: 115 | J197: Plastic/EPDM | K197: Plásticos/Etileno propileno dieno monómero [EPDM] | L197: Plastiques/EPDM | M197: 0.25
B198: =INDEX(J198:L198,U_Calculation!$AD$2) -> Plastic/Epoxy resin | C198: 0.2 | D198: 0 | I198: 232 | J198: Plastic/Epoxy resin | K198: Plásticos/Resina epoxi | L198: Plastiques/Résine époxy | M198: 0.2
B199: =INDEX(J199:L199,U_Calculation!$AD$2) -> Plastic/Isobutene compact | C199: 0.24 | D199: 0 | I199: 50 | J199: Plastic/Isobutene compact | K199: Plásticos/Butilo, [isobuteno], compacto/colado en caliente | L199: Plastiques/Butieo, [isobutene], compact/coulé au chaud | M199: 0.24
B200: =INDEX(J200:L200,U_Calculation!$AD$2) -> Plastic/Neoprene [Polycloreprene] | C200: 0.23 | D200: 0 | I200: 195 | J200: Plastic/Neoprene [Polycloreprene] | K200: Plásticos/Neopreno [policloropreno] | L200: Plastiques/Néoprène [policloroprene] | M200: 0.23
B201: =INDEX(J201:L201,U_Calculation!$AD$2) -> Plastic/Phenolic resin | C201: 0.3 | D201: 0 | I201: 233 | J201: Plastic/Phenolic resin | K201: Plásticos/Resina fenólica | L201: Plastiques/Résine phénolique | M201: 0.3
... 129 more rows

Sheet Instrucciones
A1: 1.- Modelización
A21: 2.- Introducción de datos
A50: 3.- Correcciones por instalación
A78: 4.- Resultados
A100: 5.- Datos personalizados

Sheet Instructions
A1: 1.- Modelling
A21: 2.-Data introduction
A50: 3.- Installation corrections
A73: 4.- Results
A98: 5.- Costumized data

Sheet Traduc (hidden)
B2: Selection | E2: English | F2: Español | G2: FRANÇAIS
A3: 1 | B3: =VLOOKUP(A3,$D$3:$G$31,U_Calculation!$AD$2+1,0) -> Thermal Transmittance calculation opaque walls | D3: 1 | E3: Thermal Transmittance calculation opaque walls | F3: Cálculo de la Transmitancia térmica de cerramientos opacos | G3: Calcul transmittance thermique parois opaques
A4: 2 | B4: =VLOOKUP(A4,$D$3:$G$31,U_Calculation!$AD$2+1,0) -> Construction shall be divided in layers (perpendicular to heat flow) and Sections (parallel to heat flow) | D4: 2 | E4: Construction shall be divided in layers (perpendicular to heat flow) and Sections (parallel to heat flow) | F4: La construcción debe dividirse en capas (perpendiculares al flujo de calor) y secciones (paralelas al flujo de calor) | G4: L'élément doit être divisé en couches (perpendiculaires au flux de chaleur) et sections (parallèles au fluxe de chaleur)
A5: 3 | B5: =VLOOKUP(A5,$D$3:$G$31,U_Calculation!$AD$2+1,0) -> Type of wall | D5: 3 | E5: Type of wall | F5: Tipo cerramiento | G5: Type de paroi
A6: 4 | B6: =VLOOKUP(A6,$D$3:$G$31,U_Calculation!$AD$2+1,0) -> Total Length (m) | D6: 4 | E6: Total Length (m) | F6: Ancho Total (m) | G6: Largeur totale (m)
A7: 5 | B7: =VLOOKUP(A7,$D$3:$G$31,U_Calculation!$AD$2+1,0) -> Section a | D7: 5 | E7: Section a | F7: Sección a | G7: Section a
A8: 6 | B8: =VLOOKUP(A8,$D$3:$G$31,U_Calculation!$AD$2+1,0) -> Section b | D8: 6 | E8: Section b | F8: Sección b | G8: Section b
A9: 7 | B9: =VLOOKUP(A9,$D$3:$G$31,U_Calculation!$AD$2+1,0) -> Section c | D9: 7 | E9: Section c | F9: Sección c | G9: Section c
A10: 8 | B10: =VLOOKUP(A10,$D$3:$G$31,U_Calculation!$AD$2+1,0) -> Section d | D10: 8 | E10: Section d | F10: Sección d | G10: Section d
A11: 9 | B11: =VLOOKUP(A11,$D$3:$G$31,U_Calculation!$AD$2+1,0) -> Section f | D11: 9 | E11: Section f | F11: Sección f | G11: Section f
A12: 10 | B12: =VLOOKUP(A12,$D$3:$G$31,U_Calculation!$AD$2+1,0) -> Section g | D12: 10 | E12: Section g | F12: Sección g | G12: Section g
A13: 11 | B13: =VLOOKUP(A13,$D$3:$G$31,U_Calculation!$AD$2+1,0) -> Length (m) | D13: 11 | E13: Length (m) | F13: ancho (m) | G13: Largeur (m)
A14: 12 | B14: =VLOOKUP(A14,$D$3:$G$31,U_Calculation!$AD$2+1,0) -> Layers | D14: 12 | E14: Layers | F14: Capas | G14: Couches
A15: 13 | B15: =VLOOKUP(A15,$D$3:$G$31,U_Calculation!$AD$2+1,0) -> Thickness (m) | D15: 13 | E15: Thickness (m) | F15: Espesor (m) | G15: Epaisseur (m)
A16: 14 | B16: =VLOOKUP(A16,$D$3:$G$31,U_Calculation!$AD$2+1,0) -> Product | D16: 14 | E16: Product | F16: Material | G16: Matériel
A17: 15 | B17: =VLOOKUP(A17,$D$3:$G$31,U_Calculation!$AD$2+1,0) -> Thermal Transmittance without corrections | D17: 15 | E17: Thermal Transmittance without corrections | F17: Transmitancia térmica sin correcciones | G17: Transmittance thermique sans considération des corrections
A18: 16 | B18: =VLOOKUP(A18,$D$3:$G$31,U_Calculation!$AD$2+1,0) -> Thermal Transmittance with corrections | D18: 16 | E18: Thermal Transmittance with corrections | F18: Transmitancia térmica con correcciones | G18: Transmittance thermique avec considération des corrections
A19: 17 | B19: =VLOOKUP(A19,$D$3:$G$31,U_Calculation!$AD$2+1,0) -> AIR GAPS CORRECTION | D19: 17 | E19: AIR GAPS CORRECTION | F19: CORRECCION POR AISLANTE EN CONTACTO CON CAMARA DE AIRE | G19: CORRECTION DUE AUX LAMES D'AIR
A20: 18 | B20: =VLOOKUP(A20,$D$3:$G$31,U_Calculation!$AD$2+1,0) -> Level | D20: 18 | E20: Level | F20: Nivel | G20: Niveau
A21: 19 | B21: =VLOOKUP(A21,$D$3:$G$31,U_Calculation!$AD$2+1,0) -> Layer Nº next to air gap | D21: 19 | E21: Layer Nº next to air gap | F21: Nº Capa adyacente a la cámara de aire | G21: Nº de Couche adjacente a la lame d'air
A22: 20 | B22: =VLOOKUP(A22,$D$3:$G$31,U_Calculation!$AD$2+1,0) -> FASTENERS CORRECTION | D22: 20 | E22: FASTENERS CORRECTION | F22: CORRECCION POR FIJACIONES | G22: CORRECTION DUE AUX FIXATIONS
A23: 21 | B23: =VLOOKUP(A23,$D$3:$G$31,U_Calculation!$AD$2+1,0) -> Fasteners density (un/m2) | D23: 21 | E23: Fasteners density (un/m2) | F23: Numero de fijaciones por m2 | G23: Numéro de fixations au m2
A24: 22 | B24: =VLOOKUP(A24,$D$3:$G$31,U_Calculation!$AD$2+1,0) -> Fasteners thermal conductivity (W/mK) | D24: 22 | E24: Fasteners thermal conductivity (W/mK) | F24: Conductividad térmica de la fijación W/mK | G24: Conductivité thermique de la fixation (W/mK)
A25: 23 | B25: =VLOOKUP(A25,$D$3:$G$31,U_Calculation!$AD$2+1,0) -> Areca of fastener (m2) | D25: 23 | E25: Areca of fastener (m2) | F25: Sección de la fijación (m2) | G25: Section de la fixation (m2)
A26: 24 | B26: =VLOOKUP(A26,$D$3:$G$31,U_Calculation!$AD$2+1,0) -> Insulation Thickness d0 (m) | D26: 24 | E26: Insulation Thickness d0 (m) | F26: Espesor aislante (do) (m) | G26: Epaisseur de l'isolant d0 (m)
A27: 25 | B27: =VLOOKUP(A27,$D$3:$G$31,U_Calculation!$AD$2+1,0) -> Fastener penetration thickness d1 (m) | D27: 25 | E27: Fastener penetration thickness d1 (m) | F27: Espesor penetración fijación (d1) (m) | G27: Epaisseur de la pénétration de la fixation (m)
A28: 26 | B28: =VLOOKUP(A28,$D$3:$G$31,U_Calculation!$AD$2+1,0) -> Layer nº peented by fastener | D28: 26 | E28: Layer nº peented by fastener | F28: Nº de la capa afectadas por la fijación | G28: Nº de la couche pénétré par l'isolant
A29: 27 | B29: =VLOOKUP(A29,$D$3:$G$31,U_Calculation!$AD$2+1,0) -> INVERTED ROOF CORRECTION | D29: 27 | E29: INVERTED ROOF CORRECTION | F29: CORRECCION POR CUBIERTA INVERTIDA | G29: CORRECTION POUR TOITURE INVERSÉE
A30: 28 | B30: =VLOOKUP(A30,$D$3:$G$31,U_Calculation!$AD$2+1,0) -> Average rain precipitation (mm/day) | D30: 28 | E30: Average rain precipitation (mm/day) | F30: Precipitación media de lluvia (mm/día) | G30: Précipitation pluie moyenne (mm/jour)
A31: 29 | B31: =VLOOKUP(A31,$D$3:$G$31,U_Calculation!$AD$2+1,0) -> Layer nº above insulation | D31: 29 | E31: Layer nº above insulation | F31: Nº de las capas por encima del aislamiento | G31: Nº couches au-dessus de l'isolant
